Cogmind - Beta 17 @@@ ROGUE MODE // 2026.06.26 @ 02:00:58 Player: kite Result: Destroyed by B-99 Colossus with Multirail Performance ------------- Evolutions (9) 4500 Regions Visited (34) 6800 Robots Destroyed (422) 2110 Value Destroyed (19682) 19682 Prototype IDs (50) 1000 Alien Tech Used (3) 600 Bonus (9232) 9232 TOTAL SCORE: 43924 Bonus ------- Triggered Max Security 1000 High Alert Combat Kills 3398 Follower Combat Kills 880 Entered Garrisons 400 Network Hubs Disabled 400 Aligned with FarCom 300 Acquired ECA 300 Met Zhirov 300 Met R17 at Cetus 500 Met R17 at Research 2000 Friendly Fire -246 Cogmind --------- Core Integrity 0/1600 Matter 228/300 Energy 92/100 System Corruption 33% Temperature Cool (0) Movement Core (100) Ox1 Location -1/Access Parts ------- > --- POWER (2) -------- (None) > --- PROPULSION (9) --- (None) > --- UTILITY (8) ------ Advanced Melee Analysis Suite System Shield > --- WEAPON (6) ------- Vibroblade > --- INVENTORY (5) ---- Myomer Leg Myomer Leg Biometal Leg Biometal Leg Peak State ------------ > --- POWER ------------ Quantum Reactor Light Quantum Reactor > --- PROPULSION ------- Myomer Leg Myomer Leg Myomer Leg Myomer Leg Shield Leg Biometal Leg Biometal Leg Improved Thunder Leg Centrium Leg > --- UTILITY ---------- High-capacity Storage Unit Advanced Melee Analysis Suite Advanced Melee Analysis Suite Advanced Target Analyzer Advanced Force Booster Experimental Transmission Jammer Advanced Phase Shifter Advanced Force Field > --- WEAPON ----------- Power Sword Power Sword Vibroblade Molecular Scythe Force Lance > --- INVENTORY -------- Reinforced Antimatter Reactor Light Quantum Reactor Myomer Leg Myomer Leg Myomer Leg Biometal Leg Biometal Leg Xenon Bombardment Thruster Xenon Bombardment Thruster Xenon Bombardment Thruster Xenon Bombardment Thruster Xenon Bombardment Thruster Xenon Bombardment Thruster Xenon Bombardment Thruster Xenon Bombardment Thruster Superbattery Advanced Target Analyzer Experimental Transmission Jammer Dimensional Node Initializer Transdimensional Reconstructor [Rating: 187] Favorites ----------- Power Improved Deuterium Engine Engine Improved Deuterium Engine Power Core Light Nuclear Core Reactor Quantum Reactor Propulsion Myomer Leg Treads Light Treads Leg Myomer Leg Wheel Armored Huge Wheel Flight Unit Flight Unit Utility High-capacity Storage Unit Device Improved Actuator Array Storage High-capacity Storage Unit Processor Advanced Melee Analysis Suite Hackware Advanced Hacking Suite Protection Centrium Medium Armor Plating Weapon Power Maul Impact Weapon Power Maul Slashing Weapon Power Sword Piercing Weapon Force Lance Build | -11 -10 -10 -9 -9 -9 -8 -8 -8 -8 -7 -7 -7 -7 -7 -7 -6 -6 -6 -6 -5 -5 -5 -5 -5 -4 -4 -4 -4 -3 -3 -3 -2 -2 -1 ------- Run | Yrd Mat Min Mat Min Exi Min Mat Gar Mat Fac Was Fac Low Low Zio Pro Fac Was Fac Fac Ext Cet Arc Hub Fac Upp Upp Zhi Pro Res Tes Res Gar Acc Slots Evolved 18 | . . . 2 . . . 2 . . 2 . . . . . . 2 . . 2 . . . . 2 . . . . 2 . 2 . 2 Power 1 | . . . . . . . . . . . . . . . . . . . . . . . . . . . . . . 1 . . . . Propulsion 7 | . . . 2 . . . 1 . . . . . . . . . . . . 1 . . . . . . . . . . . 1 . 2 Utility 6 | . . . . . . . 1 . . 2 . . . . . . . . . . . . . . 1 . . . . 1 . 1 . . Weapon 4 | . . . . . . . . . . . . . . . . . 2 . . 1 . . . . 1 . . . . . . . . . Parts Attached 366 | 4 11 4 16 3 . 9 18 11 7 12 . 25 3 2 1 2 5 . 17 14 10 7 2 8 19 5 . 5 4 22 2 38 27 53 Power 50 | 1 1 . 4 1 . . 2 3 1 1 . 2 1 . . 1 1 . 4 1 1 2 . . 1 . . 1 1 5 . 6 2 7 Engine 19 | 1 1 . 2 . . . 1 1 1 1 . 2 1 . . 1 1 . 3 1 1 1 . . . . . . . . . . . . Core 9 | . . . 2 1 . . 1 2 . . . . . . . . . . . . . . . . . . . . . 3 . . . . Reactor 22 | . . . . . . . . . . . . . . . . . . . 1 . . 1 . . 1 . . 1 1 2 . 6 2 7 Propulsion 138 | 2 4 3 8 2 . 8 7 6 4 3 . 10 . . . . 1 . 1 2 2 2 1 3 8 3 . 3 2 4 2 10 13 24 Treads 3 | . 2 . . . . . . . 1 . . . . . . . . . . . . . . . . . . . . . . . . . Leg 114 | . 2 3 8 2 . 1 7 6 3 . . 10 . . . . 1 . 1 2 2 2 1 3 8 3 . 3 2 4 2 10 13 15 Wheel 8 | 2 . . . . . 3 . . . 3 . . . . . . . . . . . . . . . . . . . . . . . . Hover . | . . . . . . . . . . . . . . . . . . . . . . . . . . . . . . . . . . . Flight 13 | . . . . . . 4 . . . . . . . . . . . . . . . . . . . . . . . . . . . 9 Utility 130 | 1 2 . 4 . . . 7 . 2 8 . 10 2 . . 1 1 . 7 7 6 3 . 3 7 2 . 1 . 7 . 16 11 22 Device 51 | . . . . . . . 1 . . 2 . 2 1 . . . . . 2 3 1 . . . 1 1 . . . 4 . 7 10 16 Storage 9 | 1 1 . 1 . . . . . 1 1 . . . . . . . . . . . . . . 1 . . . . 1 . 1 . 1 Processor 28 | . . . . . . . 2 . 1 2 . 2 1 . . 1 . . 3 3 . 1 . . 2 1 . . . 1 . 5 . 3 Hackware 8 | . . . . . . . . . . 1 . . . . . . . . . . . . . 3 1 . . . . . . 2 . 1 Protection 34 | . 1 . 3 . . . 4 . . 2 . 6 . . . . 1 . 2 1 5 2 . . 2 . . 1 . 1 . 1 1 1 Artifact . | . . . . . . . . . . . . . . . . . . . . . . . . . . . . . . . . . . . Weapon 48 | . 4 1 . . . 1 2 2 . . . 3 . 2 1 . 2 . 5 4 1 . 1 2 3 . . . 1 6 . 6 1 . Energy Gun . | . . . . . . . . . . . . . . . . . . . . . . . . . . . . . . . . . . . Energy Cannon . | . . . . . . . . . . . . . . . . . . . . . . . . . . . . . . . . . . . Ballistic Gun . | . . . . . . . . . . . . . . . . . . . . . . . . . . . . . . . . . . . Ballistic Cannon . | . . . . . . . . . . . . . . . . . . . . . . . . . . . . . . . . . . . Launcher . | . . . . . . . . . . . . . . . . . . . . . . . . . . . . . . . . . . . Special Weapon . | . . . . . . . . . . . . . . . . . . . . . . . . . . . . . . . . . . . Impact Weapon 11 | . 1 1 . . . . 1 1 . . . 1 . 1 . . 1 . 1 . 1 . . . . . . . 1 . . 1 . . Slashing Weapon 34 | . 3 . . . . 1 1 1 . . . 2 . 1 1 . 1 . 4 4 . . 1 . 2 . . . . 6 . 5 1 . Piercing Weapon 3 | . . . . . . . . . . . . . . . . . . . . . . . . 2 1 . . . . . . . . . Special Melee Weapon . | . . . . . . . . . . . . . . . . . . . . . . . . . . . . . . . . . . . Unidentified Prototypes 18 | . . . . . . . . . . . . . . . . . . . . . . 1 . . 1 . . 4 . 6 . 2 . 4 Corrupted Parts 6 | . . 2 . . . . . 1 1 . . . . . . . . . . . . . . 2 . . . . . . . . . . System Corruption 35 | . . 9 . . . . . 2 4 . . . . . . . . . . . . . . 20 . . . . . . . . . . Parts Lost 169 | . 2 . 11 1 . 7 5 16 . 1 . 8 . 1 . 1 1 . 11 3 2 4 3 1 3 . . . 11 3 . 29 5 40 Power 28 | . . . 2 . . 1 2 3 . . . 2 . . . 1 1 . 3 . . 1 . . . . . . 1 . . 5 1 5 Propulsion 66 | . 2 . 6 1 . 5 1 10 . 1 . 1 . . . . . . 1 1 . 1 1 1 2 . . . 3 . . 12 . 17 Utility 47 | . . . 3 . . . 2 2 . . . 5 . 1 . . . . 3 2 . 1 . . . . . . 2 3 . 7 3 13 Weapon 28 | . . . . . . 1 . 1 . . . . . . . . . . 4 . 2 1 2 . 1 . . . 5 . . 5 1 5 Highest Loss Streak 29 | . 2 . 3 1 . 7 3 4 . 1 . 2 . 1 . 1 1 . 4 1 1 3 1 1 2 . . . 6 2 . 29 2 16 To Critical Strikes 6 | . . . . . . 1 . . . . . . . . . . . . . 1 . 2 . 1 . . . . . . . . . 1 Average Backups 15 | 1 10 14 13 12 13 12 12 11 11 13 15 15 16 16 16 16 15 15 13 12 15 16 13 14 17 20 20 20 15 16 20 14 15 18 Power 1 | . 1 3 4 3 4 2 1 1 . 1 1 . 1 1 1 . . 1 1 1 2 1 1 1 1 1 1 1 . . 1 . 1 1 Propulsion 5 | 1 4 4 2 2 2 . 2 2 1 2 5 5 5 5 5 5 5 5 5 3 3 5 5 4 6 5 5 5 4 5 7 3 7 13 Utility 4 | . . 1 2 2 2 3 3 3 5 5 6 6 6 6 6 5 4 6 4 4 5 5 5 7 8 8 9 8 6 6 8 5 4 2 Weapon 2 | . 3 6 4 5 5 4 4 4 4 3 3 3 3 3 3 4 3 2 1 2 3 3 . . . 4 4 3 . 2 2 1 . . Tool/Special . | . . . . . . . . . . . . . . . . . . . . . . . . . . . . . . . . . . . Unused Backups 61 | . . . 4 . . 1 3 2 3 4 . 5 . . 1 . 5 . 2 . 3 3 1 . 8 1 . 2 . 8 1 . 2 2 Power 3 | . . . . . . . . . . . . . . . . . . . . . 2 1 . . . . . . . . . . . . Propulsion 34 | . . . 2 . . 1 2 2 3 3 . 2 . . . . 2 . . . 1 1 . . 6 . . 1 . 5 1 . 1 1 Utility 17 | . . . 1 . . . . . . 1 . 1 . . . . 1 . 2 . . 1 1 . 2 1 . 1 . 3 . . 1 1 Weapon 6 | . . . 1 . . . 1 . . . . 2 . . 1 . 1 . . . . . . . . . . . . . . . . . Tool/Special 1 | . . . . . . . . . . . . . . . . . 1 . . . . . . . . . . . . . . . . . Average Slot Usage (%) 85 | . 87 100 95 72 88 82 87 88 86 93 84 82 75 75 76 75 74 73 75 76 75 79 87 90 90 89 89 88 90 96 99 86 97 83 Engine 3 | . 14 14 3 . . 3 1 . 9 7 7 6 6 7 7 6 5 6 4 4 5 . . . . . . . . . . . . . Core 1 | . . . 7 11 11 5 7 7 . . . . . . . . . . . . . . . . . . . . . 1 4 2 . . Reactor 2 | . . . . . . . . . . . . . . . . . . . 1 . . 4 5 5 5 5 5 5 5 7 4 3 7 7 Leg 23 | . 1 28 41 28 44 20 39 39 30 24 . 21 15 15 15 15 14 13 12 16 17 19 22 25 22 21 21 21 30 28 28 25 29 28 Device 7 | . . . . . . . . . . 5 7 6 7 7 7 7 6 6 9 8 5 5 5 1 7 8 10 9 9 13 8 9 21 14 Storage 6 | . 14 14 11 11 11 11 9 9 9 7 7 7 7 7 7 7 6 6 6 5 5 5 5 5 5 5 5 5 5 4 4 5 4 4 Processor 8 | . . . . . . . . 9 16 9 7 10 22 21 15 19 14 13 12 6 11 8 11 6 5 9 10 10 8 3 4 6 4 7 Hackware 1 | . . . . . . . . . . 6 7 3 . . . . . . . . . . . 12 6 5 5 5 5 4 4 4 . . Protection 4 | . 8 14 9 . . . 6 4 . 7 7 7 . . 7 2 4 6 3 5 4 6 5 1 4 1 . . 1 4 9 2 1 1 Impact Weapon 7 | . 5 14 11 10 11 4 9 9 9 7 7 7 7 7 7 7 12 13 10 7 6 13 17 16 12 15 15 15 5 1 . 1 4 . Slashing Weapon 10 | . 16 14 11 11 11 17 9 9 9 7 7 7 7 7 7 7 6 6 11 16 14 11 10 11 6 . . . 9 19 23 20 16 15 Piercing Weapon 2 | . . . . . . . . . . . . . . . . . . . . . . . . . 10 15 15 15 7 3 4 1 4 3 Peak Build Rating 187 | 4 9 15 24 16 17 18 30 27 24 45 47 58 62 62 62 63 70 70 79 87 87 105 100 101 122 120 116 121 124 163 153 173 168 187 Average Rating 78 | 3 7 11 20 14 16 13 22 22 21 35 46 52 61 61 61 61 67 70 71 81 83 95 99 96 116 116 116 117 113 147 152 141 157 167 On Entrance 69 | . 4 9 15 15 16 17 11 27 15 23 45 47 58 62 61 62 61 70 70 68 83 86 100 100 97 118 116 116 120 112 152 147 150 163 Avg Prop Armor Cover (%) 9 | . . . . . . 7 5 . 10 . . . . . . . . . . 10 . . . . . . . . . 8 . . . 10 Naked Turns . | . . . . . . . . . . . . . . . . . . . . . . . . . . . . . . . . . . . Heaviest Build 152 | 8 31 32 38 31 31 31 45 34 33 68 68 87 57 63 63 64 69 69 75 82 79 96 89 88 92 91 84 84 89 120 114 133 152 142 Greatest Support 249 | 20 40 27 60 48 48 48 67 67 50 72 72 80 80 80 80 80 80 80 80 98 103 113 113 115 125 118 118 140 158 165 158 186 191 249 Greatest Overweight (x) 5 | . 1 1 1 1 . 5 2 1 1 1 . 1 . . . . . . 2 1 . 1 . . 1 . . . . . . 3 . . Average Overweight (x) . | . . 1 . . . . . . . . . . . . . . . . . . . . . . . . . . . . . . . . Largest Inventory Capacity 20 | 8 15 15 15 15 15 15 15 15 15 20 20 20 20 20 20 20 20 20 20 20 20 20 20 20 20 20 20 20 20 20 20 20 20 20 Average Capacity 18 | 7 12 15 15 15 15 15 15 15 15 15 20 20 20 20 20 20 20 20 20 20 20 20 20 20 20 20 20 20 20 20 20 20 20 19 Most Carried 20 | 5 15 15 15 13 14 15 15 15 15 15 18 20 20 20 20 20 20 20 20 20 20 20 20 20 20 20 20 20 20 20 20 20 20 20 Average Carried 16 | 2 10 14 13 12 13 12 13 12 12 13 17 19 19 19 19 19 19 20 18 16 17 19 18 19 19 20 20 19 14 17 20 14 15 18 Final Capacity 20 | 8 15 15 15 15 15 15 15 15 15 20 20 20 20 20 20 20 20 20 20 20 20 20 20 20 20 20 20 20 20 20 20 20 20 5 Final Carried 20 | 5 14 15 12 13 14 11 14 9 14 15 18 19 20 19 20 20 20 20 20 17 20 20 20 20 20 20 20 20 13 20 20 4 20 4 Class Distribution -------------------- 47% | Gladiator 26% | Scavenger-Gladiator 20% | Mutant Dominant Class ---------------- Mutant | -10/Materials Mutant | -10/Mines Mutant | -9/Materials Mutant | -9/Mines Scavenger-Mutant | -9/Exiles Scavenger-Mutant | -8/Mines Mutant | -8/Materials Gladiator | -8/Garrison Gladiator | -8/Materials Scavenger-Gladiator | -7/Factory Gladiator | -7/Waste Gladiator | -7/Factory Gladiator | -7/Lower Caves Gladiator | -7/Lower Caves Mutant | -7/Zion Gladiator | -6/Proximity Caves Gladiator | -6/Factory Gladiator | -6/Waste Gladiator | -6/Factory Gladiator | -5/Factory Gladiator | -5/Extension Scavenger-Gladiator | -5/Cetus Scavenger-Gladiator | -5/Archives Hacker-Gladiator | -5/Hub_04(d) Scavenger-Gladiator | -4/Factory Gladiator | -4/Upper Caves Scavenger-Gladiator | -4/Upper Caves Gladiator | -4/Zhirov Gladiator | -3/Proximity Caves Gladiator | -3/Research Gladiator | -3/Testing Hacker-Gladiator | -2/Research Scavenger-Gladiator | -2/Garrison Scavenger-Gladiator | -1/Access Resources | -11 -10 -10 -9 -9 -9 -8 -8 -8 -8 -7 -7 -7 -7 -7 -7 -6 -6 -6 -6 -5 -5 -5 -5 -5 -4 -4 -4 -4 -3 -3 -3 -2 -2 -1 ----------- Run | Yrd Mat Min Mat Min Exi Min Mat Gar Mat Fac Was Fac Low Low Zio Pro Fac Was Fac Fac Ext Cet Arc Hub Fac Upp Upp Zhi Pro Res Tes Res Gar Acc Matter Collected 5987 | 160 186 74 195 30 . 110 165 155 90 125 . 503 186 128 32 20 80 . 367 214 159 122 30 35 367 182 . . 209 348 . 443 571 701 Remotely . | . . . . . . . . . . . . . . . . . . . . . . . . . . . . . . . . . . . Salvage Created 21280 | . 385 88 1051 178 . 233 798 689 912 293 . 1652 217 433 . 70 737 . 1578 316 1162 283 585 166 1049 632 . . 865 750 . 971 1433 3754 Parts 856 | . 19 6 32 4 . 20 31 12 47 24 . 64 6 7 . 1 24 . 60 14 38 9 37 6 47 19 . . 26 31 . 40 61 171 Haulers Intercepted 8 | . . . 1 . . . 1 . 2 . . . . . . . . . . . . . . . . . . . . 2 . 1 . 1 Recyclers Shooed 3 | . . . . . . . 1 . . . . . . . . . 1 . 1 . . . . . . . . . . . . . . . Parts Field Recycled . | . . . . . . . . . . . . . . . . . . . . . . . . . . . . . . . . . . . Retrieved Matter . | . . . . . . . . . . . . . . . . . . . . . . . . . . . . . . . . . . . Parts Self-Destructed 63 | . . . . . . . . . . . . . . 7 . 14 . . . . . . . . . 18 . . 24 . . . . . Prevented 11 | . . . . . . . . . . . . . . . . . . . . . . . . . . 8 . . 3 . . . . . Parts Restored . | . . . . . . . . . . . . . . . . . . . . . . . . . . . . . . . . . . . Kills | -11 -10 -10 -9 -9 -9 -8 -8 -8 -8 -7 -7 -7 -7 -7 -7 -6 -6 -6 -6 -5 -5 -5 -5 -5 -4 -4 -4 -4 -3 -3 -3 -2 -2 -1 ------- Run | Yrd Mat Min Mat Min Exi Min Mat Gar Mat Fac Was Fac Low Low Zio Pro Fac Was Fac Fac Ext Cet Arc Hub Fac Upp Upp Zhi Pro Res Tes Res Gar Acc Combat Hostiles Destroyed 338 | . 10 4 31 1 . 6 14 16 11 3 . 31 4 8 . 2 10 . 29 5 17 3 4 2 18 9 . . 13 10 . 11 20 46 Melee 271 | . 8 3 20 . . 5 8 9 11 3 . 21 2 6 . 1 8 . 20 4 14 3 3 2 17 5 . . 12 10 . 10 20 46 Cannons 1 | . . . . . . . . . . . . 1 . . . . . . . . . . . . . . . . . . . . . . Classes Destroyed 18 | . 5 2 5 . . . 1 1 1 1 . . . . . . . . . . . . . . 1 . . . . 1 . . . . Worker 16 | . . 1 2 1 . . . . 4 . . 4 . . . . . . . . . . . . 3 . . . . . . 1 . . Builder 14 | . . 2 . . . 2 . . 3 1 . 1 . . . . 1 . 1 . 1 . . . . . . . . . . 1 . 1 Tunneler 7 | . 1 . . . . 2 . . 1 . . . . . . . . . 1 . 1 . . 1 . . . . . . . . . . Hauler 8 | . . . 1 . . . 1 . 2 . . . . . . . . . . . . . . . . . . . . 2 . 1 . 1 Recycler 11 | . . . 2 . . 1 1 . 1 2 . . . . . . 2 . 1 . . . . . . . . . . . . 1 . . Mechanic 1 | . 1 . . . . . . . . . . . . . . . . . . . . . . . . . . . . . . . . . Operator 13 | . 1 . . . . . . . . . . 2 . . . . . . . . . . 8 . 1 . . . . . . . . 1 Drone 1 | . . . . . . . . 1 . . . . . . . . . . . . . . . . . . . . . . . . . . Watcher 10 | . . . 1 . . . . . 3 . . . . . . . 1 . . 1 1 . . 1 . . . . . . . . . 2 Swarmer 61 | . 3 4 15 1 . 6 . . 2 . . . . . . 1 3 . 8 . . . . . 4 . . . 2 4 . 4 4 . Grunt 137 | . 7 . 10 3 . . 8 13 5 . . 17 . 5 . 1 5 . 9 2 5 . . . 2 5 . . 8 4 . 2 9 17 Brawler 4 | . . . . . . . . . 1 . . . . . . . . . . . 1 . . . . . . . . . . 1 1 . Duelist 13 | . . . 1 . . . . . . . . 1 . 2 . . . . 4 . 2 . . . . . . . . . . 1 1 1 Sentry 48 | . . . 5 . . . 5 1 3 1 . 4 . 1 . . 1 . 3 1 8 . 4 1 2 1 . . 1 . . . 1 5 Specialist 1 | . . . . . . . . . . . . . . . . . . . . . . . . . 1 . . . . . . . . . Hunter 26 | . . . . . . . 1 1 . . . 2 . . . . . . 3 . . . . 1 2 2 . . 2 . . 3 4 5 Programmer 41 | . . . . . . . . . . 2 . 7 . . . . 1 . 2 2 . . . . 7 1 . . . 1 . . . 18 Cetus Guard 3 | . . . . . . . . . . . . . . . . . . . . . . 3 . . . . . . . . . . . . Thug 2 | . . . . . . . . . . . . . 1 . . . . . . . . 1 . . . . . . . . . . . . Savage 1 | . . . . . . . . . . . . . . . . . . . . . 1 . . . . . . . . . . . . . Butcher 3 | . . . . . . . . . . . . . 3 . . . . . . . . . . . . . . . . . . . . . Guerrilla 1 | . . . . . . . . . . . . . . . . . . . . . . 1 . . . . . . . . . . . . Revision 1 | . . . . . . . . . . . . . . . . . . . . . . . . . . . . . . 1 . . . . Best Kill Streak 7 | . 3 2 4 1 . 3 4 3 6 1 . 3 4 4 . 1 3 . 4 2 5 2 7 2 4 3 . . 5 3 . 6 4 5 Combat Bots Only 6 | . 3 2 4 1 . 3 4 3 4 1 . 3 4 4 . 1 3 . 4 2 5 2 1 1 4 3 . . 5 3 . 6 4 5 Max Kills in Single Turn 2 | . 1 1 1 1 . 1 1 2 1 1 . 1 1 1 . 1 1 . 2 1 1 1 1 1 1 1 . . 1 1 . 1 2 1 Gunslinging . | . . . . . . . . . . . . . . . . . . . . . . . . . . . . . . . . . . . Exploded . | . . . . . . . . . . . . . . . . . . . . . . . . . . . . . . . . . . . Melee 2 | . 1 1 1 . . 1 1 2 1 1 . 1 1 1 . 1 1 . 2 1 1 1 1 1 1 1 . . 1 1 . 1 2 1 Uniques/NPCs Destroyed . | . . . . . . . . . . . . . . . . . . . . . . . . . . . . . . . . . . . Combat | -11 -10 -10 -9 -9 -9 -8 -8 -8 -8 -7 -7 -7 -7 -7 -7 -6 -6 -6 -6 -5 -5 -5 -5 -5 -4 -4 -4 -4 -3 -3 -3 -2 -2 -1 -------- Run | Yrd Mat Min Mat Min Exi Min Mat Gar Mat Fac Was Fac Low Low Zio Pro Fac Was Fac Fac Ext Cet Arc Hub Fac Upp Upp Zhi Pro Res Tes Res Gar Acc Hostile Shots Fired 3135 | . 51 30 178 10 . 94 97 131 25 38 . 329 15 74 . 39 69 . 306 28 83 48 32 23 154 63 . . 198 36 17 298 116 553 Missed 949 | . 12 5 40 4 . 21 23 38 9 13 . 104 5 29 . 15 12 . 108 8 20 23 8 2 64 22 . . 55 8 7 73 32 189 Hits 2186 | . 39 25 138 6 . 73 74 93 16 25 . 225 10 45 . 24 57 . 198 20 63 25 24 21 90 41 . . 143 28 10 225 84 364 Melee 65 | . . . 6 . . . . . 1 . . 1 8 2 . . . . 5 . 3 . . . . . . . . . 1 21 8 9 Projectile 2121 | . 39 25 132 6 . 73 74 93 15 25 . 224 2 43 . 24 57 . 193 20 60 25 24 21 90 41 . . 143 28 9 204 76 355 AOE 3 | . . . . . . . . . . . . . . . . . . . 2 . . . . . . . . . . . . . . 1 Critical Strikes 98 | . . . 3 . . 4 3 6 . . . 7 5 4 . 2 3 . 5 1 3 4 1 2 8 2 . . 3 1 . 12 3 16 Actively Blocked 1 | . . . . . . . . . . . . . . . . . . . . . . . . . . . . . . . . 1 . . Part Disruptions 3 | . . . . . . . . . . . . . . . . . . . 1 1 . . . . . . . . . . . . . 1 Damage Taken 38980 | . 436 206 1581 46 . 593 1076 1433 195 202 . 2271 327 826 . 417 736 99 3212 674 1524 844 646 780 1538 691 . . 2939 567 228 4842 1674 8377 Core 5197 | . 65 31 233 . . 113 105 122 25 11 . 200 67 144 . 30 111 . 265 50 165 132 87 143 86 132 . . 332 35 . 815 196 1502 Absorbed by Shields 2577 | . . . . . . . . . . . . 510 . . . . 234 35 215 . . . . . . . . . . 154 . 402 287 740 Redirected to Shielding 125 | . 10 5 . . . . . . . . . . . . . . . . . . . . . . . . . . . . 11 99 . . Ignored by Resistances 65 | . . . . . . . . . . . . 65 . . . . . . . . . . . . . . . . . . . . . . Regen/Repaired (Parts) 1504 | . . . . . . . . . . . . 572 . . . . . . 233 . . . . . 536 . . . . 163 . . . . Core Remaining (%) 53 | 100 . 61 . . . 13 . . 54 . . . . . . 35 . . 55 . . . . 42 . . . . 52 . 97 . 30 . Volleys Fired . | . . . . . . . . . . . . . . . . . . . . . . . . . . . . . . . . . . . Largest . | . . . . . . . . . . . . . . . . . . . . . . . . . . . . . . . . . . . Hottest . | . . . . . . . . . . . . . . . . . . . . . . . . . . . . . . . . . . . Shots Fired . | . . . . . . . . . . . . . . . . . . . . . . . . . . . . . . . . . . . Gun . | . . . . . . . . . . . . . . . . . . . . . . . . . . . . . . . . . . . Cannon . | . . . . . . . . . . . . . . . . . . . . . . . . . . . . . . . . . . . Launcher . | . . . . . . . . . . . . . . . . . . . . . . . . . . . . . . . . . . . Special . | . . . . . . . . . . . . . . . . . . . . . . . . . . . . . . . . . . . Kinetic . | . . . . . . . . . . . . . . . . . . . . . . . . . . . . . . . . . . . Thermal . | . . . . . . . . . . . . . . . . . . . . . . . . . . . . . . . . . . . Explosive . | . . . . . . . . . . . . . . . . . . . . . . . . . . . . . . . . . . . Electromagnetic . | . . . . . . . . . . . . . . . . . . . . . . . . . . . . . . . . . . . Robot Hit Streak . | . . . . . . . . . . . . . . . . . . . . . . . . . . . . . . . . . . . Robot Miss Streak . | . . . . . . . . . . . . . . . . . . . . . . . . . . . . . . . . . . . Penetration Max . | . . . . . . . . . . . . . . . . . . . . . . . . . . . . . . . . . . . Secondary Targets . | . . . . . . . . . . . . . . . . . . . . . . . . . . . . . . . . . . . Shots Hit Robots 1230 | . 31 11 78 5 . 19 40 50 36 12 . 113 10 20 . 8 32 . 80 23 80 21 35 16 72 31 . . 52 33 . 59 75 188 Core Hits 398 | . 11 2 15 3 . 3 11 7 18 6 . 26 2 6 . 2 8 . 25 6 29 6 13 6 24 8 . . 19 14 . 25 37 66 Critical Kills 17 | . . 1 1 . . . 2 1 . . . 1 . 1 . . 1 . 1 . 1 2 . . 1 1 . . 2 . . . . 1 Critical Parts Destroyed 92 | . 2 4 16 . . 2 6 6 2 . . 6 4 4 . 1 1 . 13 2 8 . 1 1 6 3 . . 3 . . 1 . . Critical Strikes 238 | . 2 5 17 . . 2 8 9 2 . . 17 4 7 . 1 6 . 21 6 26 4 5 5 13 8 . . 10 1 . 14 10 35 Smash 114 | . 2 5 17 . . 2 8 7 2 . . 9 4 5 . 1 2 . 14 2 10 2 2 1 7 4 . . 6 . . 1 . 1 Sever 105 | . . . . . . . . 2 . . . 8 . 2 . . 4 . 7 4 16 2 3 4 1 . . . 1 1 . 12 10 28 Impale 19 | . . . . . . . . . . . . . . . . . . . . . . . . . 5 4 . . 3 . . 1 . 6 Melee Attacks 2000 | . 39 14 116 6 . 42 58 98 50 17 12 188 12 31 2 16 59 28 137 56 93 26 53 30 127 43 . . 72 49 6 90 119 311 Impact 624 | . 10 11 78 2 . 18 35 60 15 1 1 88 10 16 1 5 14 6 59 16 22 12 19 7 53 16 . . 17 4 . 4 15 9 Slashing 1195 | . 29 3 38 4 . 24 23 38 35 16 11 100 2 15 1 11 45 22 78 40 71 14 34 23 24 . . . 18 30 3 80 91 272 Piercing 181 | . . . . . . . . . . . . . . . . . . . . . . . . . 50 27 . . 37 15 3 6 13 30 Sneak Attacks 135 | . 7 3 7 4 . 7 5 1 17 5 . 13 . . . . 7 . 6 1 3 3 9 . 3 4 . . . 7 . 7 5 11 Combat Hostiles 33 | . 2 . . . . . 1 1 4 1 . 2 . . . . 3 . 3 . . . . . . 4 . . . 1 . . 5 6 Follow-up Attacks 448 | . 6 2 11 . . 4 5 9 7 . . 17 1 4 . . 8 . 30 10 35 9 14 8 45 19 . . 27 13 . 27 48 89 Damage Inflicted 60899 | . 996 524 3194 280 . 702 1554 1954 1882 612 . 4867 454 856 . 348 2060 . 3873 1106 3743 1066 2030 842 3230 1624 . . 2271 1697 . 3334 4184 11616 Guns . | . . . . . . . . . . . . . . . . . . . . . . . . . . . . . . . . . . . Cannons . | . . . . . . . . . . . . . . . . . . . . . . . . . . . . . . . . . . . Explosions 212 | . . . . . . . . . . . . . . . . . . . . . . . . 212 . . . . . . . . . . Melee 60634 | . 996 524 3194 280 . 702 1554 1954 1882 612 . 4867 454 856 . 348 2060 . 3873 1106 3721 1066 2030 630 3230 1624 . . 2271 1697 . 3334 4184 11585 Ramming 53 | . . . . . . . . . . . . . . . . . . . . . 22 . . . . . . . . . . . . 31 Kinetic . | . . . . . . . . . . . . . . . . . . . . . . . . . . . . . . . . . . . Thermal . | . . . . . . . . . . . . . . . . . . . . . . . . . . . . . . . . . . . Explosive . | . . . . . . . . . . . . . . . . . . . . . . . . . . . . . . . . . . . Electromagnetic 212 | . . . . . . . . . . . . . . . . . . . . . . . . 212 . . . . . . . . . . Impact 19038 | . 349 499 2569 134 . 226 1278 1214 494 . . 2375 421 518 . 200 517 . 2104 301 791 445 458 135 1472 818 . . 632 63 . 216 485 324 Slashing 36177 | . 647 25 625 146 . 476 276 740 1388 612 . 2492 33 338 . 148 1543 . 1769 805 2930 621 1572 495 527 . . . 541 1064 . 2952 3254 10158 Piercing 5419 | . . . . . . . . . . . . . . . . . . . . . . . . . 1231 806 . . 1098 570 . 166 445 1103 Highest Corruption 33 | . 2 11 . . . . . 2 6 . 16 28 28 28 28 . 2 14 14 . 1 . . 22 6 6 6 6 6 4 4 7 11 33 Average Corruption 11 | . 2 3 . . . . . 2 3 . 10 21 28 28 28 . 2 10 14 . 1 . . 3 3 6 6 6 6 2 4 6 10 18 Corruption Purged 1 | . . . . . . . . . . . . . . . . . . . . . 1 . . . . . . . . . . . . . Corruption Blocked . | . . . . . . . . . . . . . . . . . . . . . . . . . . . . . . . . . . . Effects 632 | . 14 12 . . . . . . 18 . 3 153 35 32 6 . 7 5 69 . 7 . . . 20 25 10 5 20 15 4 7 54 111 Message Errors 161 | . 6 7 . . . . . . 1 . 1 35 7 7 1 . 3 1 21 . 2 . . . 6 10 1 2 7 3 . . 13 27 Matter Fused 143 | . 2 3 . . . . . . 1 . . 33 11 9 2 . 1 . 20 . 1 . . . 6 5 3 1 2 6 3 3 16 15 Heat Flow Errors 87 | . 3 . . . . . . . 4 . . 19 7 5 1 . 1 . 6 . 2 . . . 2 2 . . 6 2 . 2 8 17 Energy Discharges 103 | . 1 2 . . . . . . 5 . . 36 5 7 1 . . 1 6 . 2 . . . 2 2 3 1 2 . 1 . 7 19 Parts Rejected 7 | . 1 . . . . . . . . . . 3 . . . . . . . . . . . . . . . . . 1 . . 1 1 Parts Fused 10 | . . . . . . . . . 1 . . 1 1 . . . . . 4 . . . . . . . 1 . . 1 . . . 1 Data Loss (minor) 68 | . . . . . . . . . 3 . 1 15 3 3 1 . 2 2 5 . . . . . 2 2 1 1 3 1 . 2 6 15 Data Loss (major) 22 | . 1 . . . . . . . 1 . . 3 . 1 . . . 1 3 . . . . . 1 2 1 . . 1 . . 1 6 Alerts 15 | . . . . . . . . . 2 . . 4 1 . . . . . 1 . . . . . 1 2 . . . . . . 2 2 Misdirections 16 | . . . . . . . . . . . 1 4 . . . . . . 3 . . . . . . . . . . . . . . 8 Overload Shots . | . . . . . . . . . . . . . . . . . . . . . . . . . . . . . . . . . . . Overflow Damage 9276 | . 113 288 1151 89 . 183 317 361 345 63 . 792 257 183 . 102 493 . 978 180 458 55 418 39 519 415 . . 266 23 . 249 181 758 Projectiles . | . . . . . . . . . . . . . . . . . . . . . . . . . . . . . . . . . . . Explosions 13 | . . . . . . . . . . . . . . . . . . . . . . . . 12 . . . . . . . . . 1 Melee 9263 | . 113 288 1151 89 . 183 317 361 345 63 . 792 257 183 . 102 493 . 978 180 458 55 418 27 519 415 . . 266 23 . 249 181 757 Knockbacks 88 | . . 1 11 1 . . 11 3 . . . 23 . 1 . . 2 . 13 1 2 2 . . 3 3 . . 4 1 . 2 3 1 Impact 84 | . . 1 11 1 . . 11 3 . . . 20 . 1 . . 2 . 13 1 1 2 . . 3 3 . . 4 1 . 2 3 1 Kinetic . | . . . . . . . . . . . . . . . . . . . . . . . . . . . . . . . . . . . Secondary 4 | . . . . . . . . . . . . 3 . . . . . . . . 1 . . . . . . . . . . . . . Self-Inflicted Damage 221 | . . . . . . . . . . . . . . . . . . . . . . . . 109 . . . . . . . . . 112 Shots 2 | . . . . . . . . . . . . . . . . . . . . . . . . 1 . . . . . . . . . 1 Rammed . | . . . . . . . . . . . . . . . . . . . . . . . . . . . . . . . . . . . Targets Rammed 4 | . . . . . . . . . . . . . . . . . . . . . 1 . . . . . . . . . . . . 3 Kicked 4 | . . . . . . . . . . . . . . . . . . . . . 1 . . . . . . . . . . . . 3 Crushed . | . . . . . . . . . . . . . . . . . . . . . . . . . . . . . . . . . . . Highest Temperature 268 | . 257 . 8 . . . 10 14 222 1 . 268 260 212 133 3 130 . 224 . 153 . . 2 236 232 . . 258 241 . 154 242 244 Average Temperature 97 | . 114 . 8 . . . 4 7 108 1 . 102 107 82 74 3 67 . 94 . 64 . . 2 95 107 . . 109 116 . 86 92 95 Received Heat Transfer 6550 | . 180 . 399 . . . 486 756 45 60 . 739 18 282 . 105 158 . 390 72 408 126 108 72 249 174 . . 483 40 36 363 145 656 Effects 1 | . . . . . . . . . . . . 1 . . . . . . . . . . . . . . . . . . . . . . Energy Bleed 1 | . . . . . . . . . . . . 1 . . . . . . . . . . . . . . . . . . . . . . Siege Activations . | . . . . . . . . . . . . . . . . . . . . . . . . . . . . . . . . . . . Martial Activations . | . . . . . . . . . . . . . . . . . . . . . . . . . . . . . . . . . . . Shielding Activations . | . . . . . . . . . . . . . . . . . . . . . . . . . . . . . . . . . . . Robots Disrupted . | . . . . . . . . . . . . . . . . . . . . . . . . . . . . . . . . . . . Combat Hostiles . | . . . . . . . . . . . . . . . . . . . . . . . . . . . . . . . . . . . Robots Corrupted 82 | . 2 2 14 2 . 1 7 7 1 . . 12 2 2 . 1 3 . 12 1 3 1 1 1 1 4 . . 1 . . 1 . . Combat Hostiles 66 | . 2 1 11 1 . 1 6 7 . . . 9 2 2 . 1 2 . 9 1 3 . 1 . 1 4 . . 1 . . 1 . . Parts Fried 92 | . 4 3 13 3 . 4 3 5 1 . . 14 1 1 . 1 2 . 11 1 6 1 5 . 8 4 . . 1 . . . . . Impact Corruptions 217 | . 5 11 40 4 . 6 10 12 3 . . 24 7 5 . 3 6 . 33 4 10 1 2 1 15 7 . . 4 . . 2 2 . Robots Melted . | . . . . . . . . . . . . . . . . . . . . . . . . . . . . . . . . . . . Combat Hostiles . | . . . . . . . . . . . . . . . . . . . . . . . . . . . . . . . . . . . Parts Melted 3 | . . . . . . . . 1 . . . . . . . . . . . . 1 . . . . . . . . 1 . . . . Heat Transferred . | . . . . . . . . . . . . . . . . . . . . . . . . . . . . . . . . . . . Parts Sabotaged 4 | . . . . . . . . . . . . . . . . . . . . . . . . . . . . . . . 2 . . 2 Parts Stolen . | . . . . . . . . . . . . . . . . . . . . . . . . . . . . . . . . . . . Parts Stripped . | . . . . . . . . . . . . . . . . . . . . . . . . . . . . . . . . . . . Power Chain Reactions . | . . . . . . . . . . . . . . . . . . . . . . . . . . . . . . . . . . . Alert | -11 -10 -10 -9 -9 -9 -8 -8 -8 -8 -7 -7 -7 -7 -7 -7 -6 -6 -6 -6 -5 -5 -5 -5 -5 -4 -4 -4 -4 -3 -3 -3 -2 -2 -1 ------- Run | Yrd Mat Min Mat Min Exi Min Mat Gar Mat Fac Was Fac Low Low Zio Pro Fac Was Fac Fac Ext Cet Arc Hub Fac Upp Upp Zhi Pro Res Tes Res Gar Acc Maximum Alert Level 5 | . . . 1 . . . . 2 1 . . 2 . . . . 3 1 2 1 1 1 . 1 . . . . . . 5 4 4 4 Low Security (%) 59 | 100 100 100 77 100 . 100 100 10 56 100 100 59 . . . . . 48 54 96 66 80 100 86 100 . . . . 100 . . . . Level 1 12 | . . . 22 . . . . 32 43 . . 25 . . . . . 51 34 3 33 19 . 13 . . . . . . . . . . Level 2 6 | . . . . . . . . 56 . . . 15 . . . . 21 . 10 . . . . . . . . . . . . . 8 6 Level 3 17 | . . . . . . . . . . . . . . . . . 78 . . . . . . . . . . . . . . 96 68 84 Level 4 2 | . . . . . . . . . . . . . . . . . . . . . . . . . . . . . . . . 3 22 9 Level 5 . | . . . . . . . . . . . . . . . . . . . . . . . . . . . . . . . . . . . High Security . | . . . . . . . . . . . . . . . . . . . . . . . . . . . . . . . . . . . Max Security . | . . . . . . . . . . . . . . . . . . . . . . . . . . . . . . . 99 . . . Peak Influence 1604 | . 84 84 360 138 . 60 183 544 265 74 10 548 . . . . 906 243 471 218 372 253 25 269 125 . . . . 86 1604 1100 1299 1437 Initial 1100 | . . 18 . 138 . . . 92 265 74 9 . . . . . 906 242 111 218 . 174 . . 121 . . . . . . 1100 643 779 Average 294 | . 24 18 128 39 . 17 89 386 189 18 1 175 . . . . 764 202 192 56 122 110 7 51 48 . . . . 23 1589 975 943 884 Influence Increases 13193 | . 362 194 951 101 . 195 459 612 371 187 5 1063 . 230 . 234 1247 7 963 195 750 271 120 322 613 260 . . 330 321 4 326 706 1794 Destroy 0b10 Robot/C 7060 | . 200 120 620 60 . 120 280 300 220 60 . 620 . 160 . 140 200 . 580 100 460 160 80 40 360 180 . . 260 200 . 220 400 920 Destroy 0b10 Robot/NC 430 | . 15 20 30 5 . 25 10 5 70 15 . 35 . . . 5 20 . 15 5 25 5 40 10 20 . . . . 10 . 20 . 25 Destroy Leader 1338 | . 50 20 134 10 . 20 92 10 80 30 . 170 . 10 . 20 52 . 110 22 34 . . 22 90 20 . . 40 24 . 32 30 216 Allied During Kill 315 | . . 4 . 11 . . . . . . . . . . . 39 . . . 14 159 88 . . . . . . . . . . . . Successful Hack 267 | . 7 . 2 . . . 17 . . 50 . 10 . . . . 18 . 5 7 35 . . 13 42 . . . . 40 . 21 . . Select Force Hacks 140 | . 60 . 30 . . . . . . . . . . . . . . . . . . . . 50 . . . . . . . . . . Disable Machine 225 | . . . . . . . . 30 . . . 15 . . . . 15 . . 15 15 . . 45 60 . . . . . . . 15 15 Anti-Garrison Action 200 | . . . . . . . . 50 . . . . . . . . . . . . . . . . . . . . . . . . 150 . Destroy Structure 578 | . . . . . . . . 52 1 2 5 18 . . . . 12 7 13 32 22 18 . 142 26 . . . . 2 4 18 36 168 Advance Influence 900 | . . . . . . . . . . . . . . . . . 900 . . . . . . . . . . . . . . . . . Partial Spotted 45 | . . . . . . . . . . . . . . . . . . . . . . . . . . . . . . . . . 15 30 Lose Combat Pursuer 1695 | . 30 30 135 15 . 30 60 165 . 30 . 195 . 60 . 30 30 . 240 . . . . . 15 60 . . 30 45 . 15 60 420 Influence Decreases 13565 | . 314 242 595 457 . 195 316 211 749 327 31 518 545 113 117 223 565 541 675 641 439 583 120 73 823 232 67 . 330 321 . 1270 265 1667 Entered New Map 3472 | . . 30 . 218 . . . 51 279 92 17 . 203 . 117 . 5 451 48 229 1 138 . . 128 15 13 . . . . 702 215 520 Time Decay 7807 | . 294 212 485 229 . 155 286 . 470 225 14 458 342 103 . 173 350 90 517 392 356 225 120 63 471 217 54 . 230 301 . 278 . 697 Search Patrol Dispatched 200 | . . . . . . . . . . . . . . . . . 200 . . . . . . . . . . . . . . . . . Lost Part 1546 | . 20 . 110 10 . 40 30 160 . 10 . 60 . 10 . 6 10 . 110 20 20 40 . 10 20 . . . 100 20 . 290 50 400 Lost Ally 336 | . . . . . . . . . . . . . . . . 44 . . . . 62 180 . . . . . . . . . . . 50 Purge Threat 204 | . . . . . . . . . . . . . . . . . . . . . . . . . 204 . . . . . . . . . Squads Dispatched 106 | . 4 . 3 . . . 1 . 3 4 . 15 . 1 . . 5 . 12 2 3 . . 1 12 . . . . 6 6 3 . 25 Investigation 27 | . 2 . 3 . . . 1 . 1 . . 3 . . . . 4 . 2 . 2 . . 1 4 . . . . 4 . . . . Extermination 27 | . . . . . . . . . . 2 . 7 . . . . 1 . 3 2 . . . . 4 . . . . 1 . . . 7 Reinforcement 30 | . 2 . . . . . . . 2 2 . 5 . . . . . . 5 . 1 . . . 3 . . . . 1 . 2 . 7 Assault 21 | . . . . . . . . . . . . . . 1 . . . . 2 . . . . . . . . . . . 6 1 . 11 Garrison 1 | . . . . . . . . . . . . . . . . . . . . . . . . . 1 . . . . . . . . . Intercept . | . . . . . . . . . . . . . . . . . . . . . . . . . . . . . . . . . . . Searches Triggered 2 | . . . . . . . . . . . . . . . . . 2 . . . . . . . . . . . . . . . . . Construction Impeded 2 | . . . . . . . . . . . . . . . . . . . 1 . 1 . . . . . . . . . . . . . Haulers Reinforced 5 | . . . . . . . . . . . . 2 . . . . . . 1 . . . . . . . . . . 1 . . . 1 Active Scanning Responses . | . . . . . . . . . . . . . . . . . . . . . . . . . . . . . . . . . . . Cargo Convoy Interrupts 1 | . . . . . . . . . . . . . . . . . . . 1 . . . . . . . . . . . . . . . Stealth | -11 -10 -10 -9 -9 -9 -8 -8 -8 -8 -7 -7 -7 -7 -7 -7 -6 -6 -6 -6 -5 -5 -5 -5 -5 -4 -4 -4 -4 -3 -3 -3 -2 -2 -1 --------- Run | Yrd Mat Min Mat Min Exi Min Mat Gar Mat Fac Was Fac Low Low Zio Pro Fac Was Fac Fac Ext Cet Arc Hub Fac Upp Upp Zhi Pro Res Tes Res Gar Acc Distress Signals 26 | . 2 . 1 . . . 1 . 1 . . 1 . . . 2 . . . 2 2 2 . . . . . . . 6 . 1 1 4 Communications Jammed 131 | . . . . . . . . . . . . . . . . . . . . . . . . . . . . . . 7 . . 15 109 Distress Signals 131 | . . . . . . . . . . . . . . . . . . . . . . . . . . . . . . 7 . . 15 109 Times Spotted 625 | . 22 7 51 3 . 7 21 23 23 9 6 47 4 13 . 11 11 10 51 11 28 11 4 5 27 13 . . 15 23 14 18 24 113 Peak Tracking Total 15 | . 5 3 6 3 . 3 5 6 4 2 5 4 4 5 . 4 3 4 6 3 6 5 1 4 4 3 . . 6 5 8 8 3 15 Tactical Retreats 78 | . 1 2 4 1 . 1 3 6 . 1 1 11 . 4 . 2 2 2 13 . . . . . 1 3 . . 1 1 . 1 4 13 Traps | -11 -10 -10 -9 -9 -9 -8 -8 -8 -8 -7 -7 -7 -7 -7 -7 -6 -6 -6 -6 -5 -5 -5 -5 -5 -4 -4 -4 -4 -3 -3 -3 -2 -2 -1 ------- Run | Yrd Mat Min Mat Min Exi Min Mat Gar Mat Fac Was Fac Low Low Zio Pro Fac Was Fac Fac Ext Cet Arc Hub Fac Upp Upp Zhi Pro Res Tes Res Gar Acc Traps Triggered 26 | . 1 . 2 . . . 1 . 1 2 . 3 . . . . 3 . 5 1 4 . . . 2 . . . . . . . 1 . Indirectly . | . . . . . . . . . . . . . . . . . . . . . . . . . . . . . . . . . . . Trap Hack Attempts . | . . . . . . . . . . . . . . . . . . . . . . . . . . . . . . . . . . . Triggered . | . . . . . . . . . . . . . . . . . . . . . . . . . . . . . . . . . . . Disarmed . | . . . . . . . . . . . . . . . . . . . . . . . . . . . . . . . . . . . Reprogrammed . | . . . . . . . . . . . . . . . . . . . . . . . . . . . . . . . . . . . Reused . | . . . . . . . . . . . . . . . . . . . . . . . . . . . . . . . . . . . Traps Extracted . | . . . . . . . . . . . . . . . . . . . . . . . . . . . . . . . . . . . Installed . | . . . . . . . . . . . . . . . . . . . . . . . . . . . . . . . . . . . Triggered . | . . . . . . . . . . . . . . . . . . . . . . . . . . . . . . . . . . . Machines | -11 -10 -10 -9 -9 -9 -8 -8 -8 -8 -7 -7 -7 -7 -7 -7 -6 -6 -6 -6 -5 -5 -5 -5 -5 -4 -4 -4 -4 -3 -3 -3 -2 -2 -1 ---------- Run | Yrd Mat Min Mat Min Exi Min Mat Gar Mat Fac Was Fac Low Low Zio Pro Fac Was Fac Fac Ext Cet Arc Hub Fac Upp Upp Zhi Pro Res Tes Res Gar Acc Machines Disabled 20 | . . . . . . . . 3 . . . 1 . . . 1 1 . . 1 3 . . 3 4 . . . . . . . 2 1 Max in Single Turn 3 | . . . . . . . . 1 . . . 1 . . . 1 1 . . 1 . . . 3 1 . . . . . . . 1 1 Garrison Access 3 | . . . . . . . . . . . . . . . . . . . 1 . . . . . 1 . . . . 1 . . . . Garrison Relay 3 | . . . . . . . . 2 . . . . . . . . . . . . . . . . . . . . . . . . 1 . Network Hub 2 | . . . . . . . . . . . . . . . . . . . . . . . . 2 . . . . . . . . . . Energy Cycler 1 | . . . . . . . . . . . . . . . . . . . . . . . . . . . . . . . . . . 1 Machines Repaired . | . . . . . . . . . . . . . . . . . . . . . . . . . . . . . . . . . . . Machines Dismantled . | . . . . . . . . . . . . . . . . . . . . . . . . . . . . . . . . . . . Machines Sabotaged 1 | . . . . . . . . . . . . . . . . . . . . . . . . 1 . . . . . . . . . . Overloaded Fab Kills . | . . . . . . . . . . . . . . . . . . . . . . . . . . . . . . . . . . . Hacking | -11 -10 -10 -9 -9 -9 -8 -8 -8 -8 -7 -7 -7 -7 -7 -7 -6 -6 -6 -6 -5 -5 -5 -5 -5 -4 -4 -4 -4 -3 -3 -3 -2 -2 -1 --------- Run | Yrd Mat Min Mat Min Exi Min Mat Gar Mat Fac Was Fac Low Low Zio Pro Fac Was Fac Fac Ext Cet Arc Hub Fac Upp Upp Zhi Pro Res Tes Res Gar Acc Machines Accessed 77 | . 4 1 4 . 1 . 2 . 2 2 . 7 . . . 1 6 . 4 2 7 . . 2 11 1 1 4 . 5 . 2 1 7 Terminals 36 | . 2 . 2 . . . 1 . 2 2 . 2 . . . . 2 . 3 1 7 . . 2 4 . . . . 2 . 1 1 2 Fabricators 9 | . . . . . . . . . . . . 1 . . . . 2 . . 1 . . . . 2 . . . . 1 . . . 2 Repair Stations 9 | . . . . . . . . . . . . 2 . . . . 1 . 1 . . . . . 3 . . . . 1 . . . 1 Recycling Units 4 | . 2 . 1 . . . . . . . . . . . . . . . . . . . . . . . . . . . . . . 1 Scanalyzers 4 | . . . 1 . . . . . . . . 1 . . . . 1 . . . . . . . . . . . . . . . . 1 Garrison Access 6 | . . . . . . . 1 . . . . 1 . . . . . . . . . . . . 2 . . . . 1 . 1 . . Total Hacks 191 | . 9 1 10 . 1 . 4 . 4 5 . 14 . . . 1 14 . 8 2 16 . . 9 36 6 1 17 . 15 . 6 4 8 Successful 92 | . 5 1 3 . 1 . 2 . . 4 . 5 . . . 1 7 . 2 1 7 . . 5 16 6 1 17 . 7 . 1 . . Failed 98 | . 4 . 6 . . . 2 . 4 1 . 9 . . . . 7 . 6 1 9 . . 4 20 . . . . 8 . 5 4 8 Catastrophic 29 | . 1 . 2 . . . . . . 1 . 4 . . . . 2 . 3 . 4 . . 2 3 . . . . 1 . 1 1 4 Database Lockouts 1 | . . . 1 . . . . . . . . . . . . . . . . . . . . . . . . . . . . . . . Manual 76 | . 9 . 5 . 1 . 1 . 4 5 . 1 . . 1 . 1 . 8 1 . . . 9 15 . . . . 10 . . . 5 Terminals 102 | . 5 . 5 . . . 1 . 4 5 . 2 . . . . 5 . 7 1 16 . . 9 24 . . . . 9 . 3 4 2 Fabricators 17 | . . . . . . . . . . . . 1 . . . . 4 . . 1 . . . . 6 . . . . 3 . . . 2 Repair Stations 19 | . . . . . . . . . . . . 7 . . . . 3 . 1 . . . . . 4 . . . . 2 . . . 2 Recycling Units 7 | . 4 . 2 . . . . . . . . . . . . . . . . . . . . . . . . . . . . . . 1 Scanalyzers 8 | . . . 3 . . . . . . . . 2 . . . . 2 . . . . . . . . . . . . . . . . 1 Garrison Access 11 | . . . . . . . 3 . . . . 2 . . . . . . . . . . . . 2 . . . . 1 . 3 . . Terminal Hacks 47 | . 1 1 . . 1 . . . . 2 . . . . . 1 . . . 1 7 . . 2 5 6 1 17 . 2 . . . . Record 12 | . . . . . . . . . . . . . . . . 1 . . . . . . . . . 6 . 5 . . . . . . Part Schematic 6 | . 1 . . . . . . . . . . . . . . . . . . . . . . . . . . 4 . 1 . . . . Robot Analysis 4 | . . . . . . . . . . . . . . . . . . . . . . . . . . . . 4 . . . . . . Prototype ID Bank 4 | . . . . . . . . . . . . . . . . . . . . . . . . . . . . 4 . . . . . . Open Door 9 | . . 1 . . . . . . . . . . . . . . . . . . 7 . . . . . 1 . . . . . . . Level Access Points 1 | . . . . . . . . . . . . . . . . . . . . . . . . 1 . . . . . . . . . . Branch Access Points 2 | . . . . . . . . . . . . . . . . . . . . . . . . . 1 . . . . 1 . . . . Terminal Index 1 | . . . . . . . . . . . . . . . . . . . . . . . . 1 . . . . . . . . . . Repair Station Index 1 | . . . . . . . . . . . . . . . . . . . . . . . . . 1 . . . . . . . . . Alert Level 1 | . . . . . . . . . . . . . . . . . . . . . . . . . 1 . . . . . . . . . Unreport Threat 2 | . . . . . . . . . . . . . . . . . . . . . . . . . 2 . . . . . . . . . Hauler Manifests 1 | . . . . . . . . . . 1 . . . . . . . . . . . . . . . . . . . . . . . . Registered Components 2 | . . . . . . . . . . 1 . . . . . . . . . 1 . . . . . . . . . . . . . . Proto ID Catalog 1 | . . . . . 1 . . . . . . . . . . . . . . . . . . . . . . . . . . . . . Fabricator Hacks 10 | . . . . . . . . . . . . . . . . . 4 . . . . . . . 4 . . . . 2 . . . . Load Schematic 5 | . . . . . . . . . . . . . . . . . 2 . . . . . . . 2 . . . . 1 . . . . Build 5 | . . . . . . . . . . . . . . . . . 2 . . . . . . . 2 . . . . 1 . . . . Repair Station Hacks 7 | . . . . . . . . . . . . 3 . . . . 2 . . . . . . . 2 . . . . . . . . . Scan Component 5 | . . . . . . . . . . . . 2 . . . . 2 . . . . . . . 1 . . . . . . . . . Repair 2 | . . . . . . . . . . . . 1 . . . . . . . . . . . . 1 . . . . . . . . . Recycling Unit Hacks . | . . . . . . . . . . . . . . . . . . . . . . . . . . . . . . . . . . . Scanalyzer 4 | . . . 2 . . . . . . . . 2 . . . . . . . . . . . . . . . . . . . . . . Insert Component 1 | . . . . . . . . . . . . 1 . . . . . . . . . . . . . . . . . . . . . . Analyze 1 | . . . . . . . . . . . . 1 . . . . . . . . . . . . . . . . . . . . . . Retrieve Study 2 | . . . 2 . . . . . . . . . . . . . . . . . . . . . . . . . . . . . . . Garrison Access Hacks 5 | . . . . . . . 1 . . . . . . . . . . . . . . . . . 2 . . . . 1 . 1 . . Unlock Access 3 | . . . . . . . 1 . . . . . . . . . . . . . . . . . 1 . . . . . . 1 . . Seal Access 2 | . . . . . . . . . . . . . . . . . . . . . . . . . 1 . . . . 1 . . . . Unauthorized Hacks 18 | . 3 . 1 . . . 1 . . 2 . . . . . . 1 . 2 . . . . 3 3 . . . . 2 . . . . Terminals 11 | . 1 . . . . . 1 . . 2 . . . . . . 1 . 1 . . . . 3 1 . . . . 1 . . . . Botnet 9 | . 1 . . . . . 1 . . 2 . . . . . . 1 . 1 . . . . 1 1 . . . . 1 . . . . Skim 1 | . . . . . . . . . . . . . . . . . . . . . . . . 1 . . . . . . . . . . Sabotage 1 | . . . . . . . . . . . . . . . . . . . . . . . . 1 . . . . . . . . . . Fabricators . | . . . . . . . . . . . . . . . . . . . . . . . . . . . . . . . . . . . Repair Stations 4 | . . . . . . . . . . . . . . . . . . . 1 . . . . . 2 . . . . 1 . . . . Patch 4 | . . . . . . . . . . . . . . . . . . . 1 . . . . . 2 . . . . 1 . . . . Recycling Units 3 | . 2 . 1 . . . . . . . . . . . . . . . . . . . . . . . . . . . . . . . Tunnel 3 | . 2 . 1 . . . . . . . . . . . . . . . . . . . . . . . . . . . . . . . Scanalyzers . | . . . . . . . . . . . . . . . . . . . . . . . . . . . . . . . . . . . Garrison Access . | . . . . . . . . . . . . . . . . . . . . . . . . . . . . . . . . . . . Data Cores Recovered 1 | . . . . . . . . . . . . . . . . . . . . . . . . . . . . . . 1 . . . . Used . | . . . . . . . . . . . . . . . . . . . . . . . . . . . . . . . . . . . Hacking Detections 52 | . 4 . 2 . . . 2 . 1 1 . 7 . . . . 6 . 3 1 6 . . 1 5 . . . . 3 . 2 1 7 Full Trace Events 13 | . . . 1 . . . 1 . . . . 2 . . . . 3 . . . 2 . . . 2 . . . . 2 . . . . Feedback Events 1 | . . . . . . . . . . . . . . . . . . . . . 1 . . . . . . . . . . . . . Corruption 1 | . . . . . . . . . . . . . . . . . . . . . 1 . . . . . . . . . . . . . Feedback Blocked . | . . . . . . . . . . . . . . . . . . . . . . . . . . . . . . . . . . . Robot Schematics Acquired 3 | . . . . . . . . . . . . . . . 3 . . . . . . . . . . . . . . . . . . . Robots Built . | . . . . . . . . . . . . . . . . . . . . . . . . . . . . . . . . . . . Authchips . | . . . . . . . . . . . . . . . . . . . . . . . . . . . . . . . . . . . Time . | . . . . . . . . . . . . . . . . . . . . . . . . . . . . . . . . . . . Total Robot Build Rating . | . . . . . . . . . . . . . . . . . . . . . . . . . . . . . . . . . . . Part Schematics Acquired 23 | . 1 . . . . . . . . . . 1 . . 16 . . . . . . . . . . . . 4 . 1 . . . . Parts Built 6 | . . . . . . . . . . . . . . . . . 2 . . . . . . . 2 . . . . 2 . . . . Authchips . | . . . . . . . . . . . . . . . . . . . . . . . . . . . . . . . . . . . Time 326 | . . . . . . . . . . . . . . . . . 212 . . . . . . . 78 . . . . 36 . . . . Total Part Build Rating 25 | . . . . . . . . . . . . . . . . . 12 . . . . . . . 7 . . . . 6 . . . . Part Studies Acquired 1 | . . . 1 . . . . . . . . . . . . . . . . . . . . . . . . . . . . . . . Parts Repaired 2 | . . . . . . . . . . . . 1 . . . . . . . . . . . . 1 . . . . . . . . . Time 128 | . . . . . . . . . . . . 78 . . . . . . . . . . . . 50 . . . . . . . . . Parts Recycled . | . . . . . . . . . . . . . . . . . . . . . . . . . . . . . . . . . . . Recycled Matter . | . . . . . . . . . . . . . . . . . . . . . . . . . . . . . . . . . . . Retrieved Matter . | . . . . . . . . . . . . . . . . . . . . . . . . . . . . . . . . . . . Retrieved Components . | . . . . . . . . . . . . . . . . . . . . . . . . . . . . . . . . . . . Parts Scanalyzed 1 | . . . . . . . . . . . . 1 . . . . . . . . . . . . . . . . . . . . . . Part Schematics Acquired 1 | . . . . . . . . . . . . 1 . . . . . . . . . . . . . . . . . . . . . . Parts Damaged . | . . . . . . . . . . . . . . . . . . . . . . . . . . . . . . . . . . . Bothacking | -11 -10 -10 -9 -9 -9 -8 -8 -8 -8 -7 -7 -7 -7 -7 -7 -6 -6 -6 -6 -5 -5 -5 -5 -5 -4 -4 -4 -4 -3 -3 -3 -2 -2 -1 ------------ Run | Yrd Mat Min Mat Min Exi Min Mat Gar Mat Fac Was Fac Low Low Zio Pro Fac Was Fac Fac Ext Cet Arc Hub Fac Upp Upp Zhi Pro Res Tes Res Gar Acc Used RIF Installer . | . . . . . . . . . . . . . . . . . . . . . . . . . . . . . . . . . . . Robots Hacked . | . . . . . . . . . . . . . . . . . . . . . . . . . . . . . . . . . . . Non-combat . | . . . . . . . . . . . . . . . . . . . . . . . . . . . . . . . . . . . Combat . | . . . . . . . . . . . . . . . . . . . . . . . . . . . . . . . . . . . Robot Hacks Applied . | . . . . . . . . . . . . . . . . . . . . . . . . . . . . . . . . . . . Relay Couplers Released 11 | . . . . . . . . 7 . . . . . . . . . . 1 . . . . . . . . . . . . . 3 . Machine Destruction 11 | . . . . . . . . 7 . . . . . . . . . . 1 . . . . . . . . . . . . . 3 . Fabnet Peak Effective % . | . . . . . . . . . . . . . . . . . . . . . . . . . . . . . . . . . . . Robots Rewired 11 | . . . . . . . . . . . . . . 1 . . . . . . 10 . . . . . . . . . . . . . Allies Hacked . | . . . . . . . . . . . . . . . . . . . . . . . . . . . . . . . . . . . Hacks Repelled . | . . . . . . . . . . . . . . . . . . . . . . . . . . . . . . . . . . . Allies | -11 -10 -10 -9 -9 -9 -8 -8 -8 -8 -7 -7 -7 -7 -7 -7 -6 -6 -6 -6 -5 -5 -5 -5 -5 -4 -4 -4 -4 -3 -3 -3 -2 -2 -1 -------- Run | Yrd Mat Min Mat Min Exi Min Mat Gar Mat Fac Was Fac Low Low Zio Pro Fac Was Fac Fac Ext Cet Arc Hub Fac Upp Upp Zhi Pro Res Tes Res Gar Acc Total Allies 42 | . . 1 . 3 . . . . . . 1 . . 1 4 . . . . 12 18 . . . . 2 . . . . . . . . Largest Group 11 | . . 1 . 3 . . . . . . 1 . . 1 5 5 . . . 4 11 11 . . . 2 . . . . . . . . Highest-Rated Group 320 | . . 31 . 40 . . . . . . 31 . . 20 129 129 . . . 96 320 320 . . . 76 . . . . . . . . Highest-Rated Ally 39 | . . 31 . 16 . . . . . . 31 . . 20 39 39 . . . 31 39 39 . . . 38 . . . . . . . . Initial Warlord ECA Mod 4 | . . . . . . . . . 4 3 3 3 3 3 3 2 2 2 2 1 1 1 1 1 . . . . . . . . . 2 Total Orders 5 | . . . . . . . . . . . . . . . . . . . . . . . . . . . . . . . . . . 5 EXPLORE 5 | . . . . . . . . . . . . . . . . . . . . . . . . . . . . . . . . . . 5 Ally Attacks 289 | . . 7 . 5 . . . . . . 11 . . . . 75 . . . . 108 78 . . . 5 . . . . . . . . Total Damage 5065 | . . 85 . 33 . . . . . . 191 . . . . 778 . . . . 2352 1444 . . . 182 . . . . . . . . Kills 29 | . . 3 . 2 . . . . . . . . . . . 7 . . . . 11 6 . . . . . . . . . . . . Allies Corrupted 1 | . . . . . . . . . . . . . . . . . . . . . . 1 . . . . . . . . . . . . Allies Melted 2 | . . . . . . . . . . . . . . . . . . . . . 1 . . . . . . . . . . . 1 . Intel | -11 -10 -10 -9 -9 -9 -8 -8 -8 -8 -7 -7 -7 -7 -7 -7 -6 -6 -6 -6 -5 -5 -5 -5 -5 -4 -4 -4 -4 -3 -3 -3 -2 -2 -1 ------- Run | Yrd Mat Min Mat Min Exi Min Mat Gar Mat Fac Was Fac Low Low Zio Pro Fac Was Fac Fac Ext Cet Arc Hub Fac Upp Upp Zhi Pro Res Tes Res Gar Acc Active Infowar (turns) 12104 | . . . . . . . 51 . 1047 194 . . 766 661 1134 586 163 . . 126 . . . . . 736 376 237 612 1031 127 428 1331 2498 Optics 1292 | . . . . . . . 51 . 1047 194 . . . . . . . . . . . . . . . . . . . . . . . . Sensors 5271 | . . . . . . . . . . . . . 766 661 1134 586 163 . . . . . . . . 736 376 237 612 . . . . . Terrain 904 | . . . . . . . . . . . . . . . . . . . . . . . . . . . . . . . . 428 81 395 Cloaking 2 | . . . . . . . . . . . . . . . . . . . . . . . . . . . . . . . . . . 2 Jamming 5212 | . . . . . . . . . . . . . . . . . . . . 126 . . . . . . . . . 1031 127 99 1331 2498 Robot Analysis Total 4 | . . . . . . . . . . . . . . . . . . . . . . . . . . . . 4 . . . . . . Derelict Logs Recovered 7 | . . 1 . 1 . . . . . . . . 1 . 1 1 . . . . . . . . . 2 . . . . . . . . Drone Launches 5 | . . . . . . . . . . . . . . . . . . . . . . . . . . . . . . . . . . 5 Drone Recoveries . | . . . . . . . . . . . . . . . . . . . . . . . . . . . . . . . . . . . Exploration | -11 -10 -10 -9 -9 -9 -8 -8 -8 -8 -7 -7 -7 -7 -7 -7 -6 -6 -6 -6 -5 -5 -5 -5 -5 -4 -4 -4 -4 -3 -3 -3 -2 -2 -1 ------------- Run | Yrd Mat Min Mat Min Exi Min Mat Gar Mat Fac Was Fac Low Low Zio Pro Fac Was Fac Fac Ext Cet Arc Hub Fac Upp Upp Zhi Pro Res Tes Res Gar Acc Turns Passed 32607 | 39 1049 970 1490 771 274 461 763 1017 1180 742 125 3352 767 661 1134 586 788 193 1755 1118 1541 527 414 243 1852 958 376 237 977 1032 140 616 1535 2924 Spaces Moved 19447 | 36 597 485 759 532 237 299 359 587 686 578 94 1893 515 377 789 366 352 89 944 569 853 313 194 141 1187 635 312 181 678 667 102 300 826 1915 Core 2 | 2 . . . . . . . . . . . . . . . . . . . . . . . . . . . . . . . . . . Treads 321 | . 321 . . . . . . . . . . . . . . . . . . . . . . . . . . . . . . . . . Legs 17960 | . 23 485 759 532 237 123 319 587 686 379 . 1779 515 377 789 366 352 89 944 569 853 313 194 141 1187 635 312 181 678 667 102 300 826 1661 Wheels 825 | 34 253 . . . . 91 40 . . 199 94 114 . . . . . . . . . . . . . . . . . . . . . . Hover . | . . . . . . . . . . . . . . . . . . . . . . . . . . . . . . . . . . . Flight 339 | . . . . . . 85 . . . . . . . . . . . . . . . . . . . . . . . . . . . 254 Fastest Speed 22 | 50 80 185 110 112 112 86 86 105 105 100 100 100 140 140 140 140 136 140 140 133 133 125 125 120 114 117 117 117 118 118 121 116 116 22 Average Speed 127 | 78 127 189 117 139 112 108 116 122 134 108 100 134 140 140 140 140 139 140 140 156 133 128 125 123 120 126 117 120 118 123 121 122 116 107 Slowest Speed 440 | 80 190 190 182 190 112 440 260 175 175 175 100 250 140 140 140 140 140 140 360 220 133 210 126 125 206 127 117 125 125 130 121 330 117 122 Overloaded Moves . | . . . . . . . . . . . . . . . . . . . . . . . . . . . . . . . . . . . Propulsion Burnouts . | . . . . . . . . . . . . . . . . . . . . . . . . . . . . . . . . . . . Robots Hopped 4 | . . . . . . . . . . . . . . . . . . . . . . . . . . . . . . . . . . 4 Potential Cave-ins 23 | . . . . . . . . . . . 6 . . . . . . 15 . . . . . . . . . . . . . . . 2 Cave-ins Triggered 4 | . . . . . . . . . . . . . . . . . 1 1 . . . . . 1 . . . . . . . . . 1 Teleports 1 | . . . . . . . . . . . . . . . . . . . . . . . . . . . . . . . . . . 1 Exploration Rate (%) 50 | 4 74 93 75 98 62 49 32 40 40 15 82 49 69 61 79 58 10 68 28 17 84 57 90 16 25 74 50 62 77 16 23 8 51 40 Regions Visited 34 Branch Regions 17 Pre-discovered Areas 11 | . 2 . 1 1 . . . . . . . . 1 . 1 . . . . . . . . . . 2 . 3 . . . . . . Known Exits Taken 16 | . . . . . . 1 1 . . . . 1 1 1 1 1 . . . 1 . . . 1 1 1 1 1 1 1 . 1 . . Unknown Exits Taken 12 | 1 1 1 1 1 1 . . . 1 . . . . . . . . . 1 . 1 1 1 . . . . . . . 1 . . . Scrap Searched 14 | . . . . 1 . 2 . . . . . . 1 1 3 2 . . . . . . . . . 2 . . 2 . . . . . Spaces Dug 184 | . . . . . . . . 7 . 2 11 19 . 1 . . 13 22 13 16 2 . . 6 12 1 . . . 1 2 6 7 43 Terrain Destroyed 374 | . . . . . . . . 7 . 2 11 19 . 1 . . 13 22 13 16 2 . . 175 12 1 . . . 1 2 6 7 64 Melee 184 | . . . . . . . . 7 . 2 11 19 . 1 . . 13 22 13 16 2 . . 6 12 1 . . . 1 2 6 7 43 Projectile . | . . . . . . . . . . . . . . . . . . . . . . . . . . . . . . . . . . . AOE 190 | . . . . . . . . . . . . . . . . . . . . . . . . 169 . . . . . . . . . 21 Terrain Rammed . | . . . . . . . . . . . . . . . . . . . . . . . . . . . . . . . . . . . Walls Destroyed . | . . . . . . . . . . . . . . . . . . . . . . . . . . . . . . . . . . . Machines Disabled . | . . . . . . . . . . . . . . . . . . . . . . . . . . . . . . . . . . . Actions | -11 -10 -10 -9 -9 -9 -8 -8 -8 -8 -7 -7 -7 -7 -7 -7 -6 -6 -6 -6 -5 -5 -5 -5 -5 -4 -4 -4 -4 -3 -3 -3 -2 -2 -1 --------- Run | Yrd Mat Min Mat Min Exi Min Mat Gar Mat Fac Was Fac Low Low Zio Pro Fac Was Fac Fac Ext Cet Arc Hub Fac Upp Upp Zhi Pro Res Tes Res Gar Acc Total 24705 | 44 816 516 1150 549 245 359 603 731 875 678 105 2446 538 468 816 419 563 110 1217 723 1143 413 308 175 1483 740 323 201 770 828 111 445 1319 2475 Wait 2642 | . 159 13 253 8 8 3 145 33 130 19 . 288 2 36 21 33 124 . 141 70 96 63 80 6 135 72 12 3 39 56 2 17 351 224 Move 19407 | 35 596 484 758 531 236 298 359 586 685 578 93 1892 514 376 788 365 352 88 943 568 852 312 193 140 1186 634 311 180 677 666 101 299 823 1908 Hop 3 | . . . . . . . . . . . . . . . . . . . . . . . . . . . . . . . . . . 3 Pick Up 285 | 5 13 1 9 . 1 2 12 8 9 21 1 31 2 1 2 1 14 . 10 10 9 8 4 3 30 3 . 2 5 15 . 5 23 25 Fast Attach 182 | 4 4 . 4 2 . 6 11 1 4 6 . 8 3 1 1 1 1 . 8 12 3 2 . 2 15 . . 6 . 20 1 25 12 19 Attach 169 | . 3 . 9 . . 4 5 11 1 2 . 14 1 1 . 1 6 . 10 10 1 6 3 1 5 . . . 12 5 . 21 5 32 Detach 21 | . . . . . . . . . . . . 5 1 . . 1 . . . 3 . . . . 1 . . . . 3 . 3 2 2 Swap 185 | . 4 4 8 3 . 1 6 4 2 5 . 14 2 1 1 . 1 . 10 3 12 1 . 5 15 9 . 2 2 8 2 11 23 26 Drop 351 | . 4 3 10 . . 6 16 5 6 23 . 34 2 2 2 1 15 . 9 14 13 8 1 1 41 5 . 8 1 28 2 13 28 50 Fire . | . . . . . . . . . . . . . . . . . . . . . . . . . . . . . . . . . . . Melee 1312 | . 33 11 99 5 . 36 49 83 38 16 11 160 11 26 1 16 45 22 86 33 52 13 27 17 55 17 . . 34 27 3 51 52 183 Ram . | . . . . . . . . . . . . . . . . . . . . . . . . . . . . . . . . . . . Kick 4 | . . . . . . . . . . . . . . . . . . . . . 1 . . . . . . . . . . . . 3 Crush . | . . . . . . . . . . . . . . . . . . . . . . . . . . . . . . . . . . . Escape Stasis 22 | . . . . . . . . . . 8 . . . . . . 5 . . . 9 . . . . . . . . . . . . . Rewire 122 | . . . . . . 3 . . . . . . . 24 . . . . . . 95 . . . . . . . . . . . . . Trap . | . . . . . . . . . . . . . . . . . . . . . . . . . . . . . . . . . . . Miscellaneous . | . . . . . . . . . . . . . . . . . . . . . . . . . . . . . . . . . . . Route ------- -11/Scrapyard -10/Materials (discovered 3 exits: *Mat x2 / *Min) -10/Mines (discovered 3 exits: *Mat x2 / [*Sub]) -9/Materials (discovered 5 exits: *Mat x3 / [*Min] / [*Sto]) -9/Mines (discovered 3 exits: *Mat x2 / *Exi) -9/Exiles -8/Mines -8/Materials (discovered 2 exits: *Fac / Gar) -8/Garrison -8/Materials -7/Factory -7/Waste -7/Factory (discovered 6 exits: *Fac x4 / *Low x2) -7/Lower Caves -7/Lower Caves (discovered 2 exits: *Fac / *Zio) -7/Zion -6/Proximity Caves -6/Factory -6/Waste -6/Factory (discovered 2 exits: *Fac / *Low) -5/Factory (discovered 2 exits: *Fac / *Ext) -5/Extension (discovered 2 exits: *Fac / [*Cet]) -5/Cetus (discovered 2 exits: *Fac / [*Arc]) -5/Archives (discovered 3 exits: *Fac / *Hub x2) -5/Hub_04(d) (discovered 4 exits: *Fac x4) -4/Factory (discovered 4 exits: *Res / *Upp x2 / Gar) -4/Upper Caves -4/Upper Caves -4/Zhirov -3/Proximity Caves -3/Research (discovered 3 exits: Arm / *Tes x2) -3/Testing -2/Research -2/Garrison (discovered 3 exits: *Acc x3) -1/Access History --------- Turn | Location | Event 19 | -11/Scrapyard | Discovered new exit (range 15) 40 | -11/Scrapyard | Entered Materials 65 | -10/Materials | Discovered new exit (range 13) 328 | -10/Materials | Build established: Mutant 505 | -10/Materials | Discovered new exit (range 5) 873 | -10/Materials | Discovered new exit (range 11) 1089 | -10/Materials | Entered Mines 1133 | -10/Mines | Met a Derelict bent on vengeance 1161 | -10/Mines | Received a Mining Laser from a helpful Derelict 1171 | -10/Mines | Discovered new exit (range 5) 1228 | -10/Mines | Discovered new exit (range 7) 1457 | -10/Mines | Received a Rocket Launcher from a helpful Derelict 1862 | -10/Mines | Learned 8 Materials zone layouts 1865 | -10/Mines | Met a Derelict who couldn't figure out how to use a Trap Extractor 1905 | -10/Mines | System corruption reached 10% 2050 | -10/Mines | Discovered new exit (range 13) 2059 | -10/Mines | Entered Materials 2059 | -9/Materials | Evolved 2 slots: Propulsion x2 2060 | -9/Materials | Identified exit to Materials 2260 | -9/Materials | Discovered new exit (range 15) 2495 | -9/Materials | Discovered exit to Materials (range 14) 3041 | -9/Materials | Central database locked down 3370 | -9/Materials | Lost 3 parts (2n1u) 3465 | -9/Materials | Discovered new exit (range 16) 3492 | -9/Materials | Core integrity fell below 50% 3549 | -9/Materials | Entered Mines 3572 | -9/Mines | Found a hidden stash of uninstalled traps 3676 | -9/Mines | Learned location of Zion (-7) 3682 | -9/Mines | Discovered exit to Materials (range 15) 3798 | -9/Mines | Assisted by bots powering up and referring to "LRC-V3" 3944 | -9/Mines | A Derelict revealed a hidden shortcut to a safe place 4027 | -9/Mines | Discovered exit to Materials (range 8) 4281 | -9/Mines | Deemed a non-threat by the Exiles lab entrance 4283 | -9/Mines | Discovered new exit (range 5) 4320 | -9/Mines | Entered Exiles 4323 | -9/Exiles | Murdered 3 allies 4347 | -9/Exiles | Met 8R-AWN 4368 | -9/Exiles | Met EX-HEX 4398 | -9/Exiles | Met EX-BIN 4413 | -9/Exiles | Aligned with FarCom system 4415 | -9/Exiles | Given EX-Vault access code 4440 | -9/Exiles | Opened EX-Vault 4447 | -9/Exiles | Found Superbattery 4481 | -9/Exiles | Warned to stay clear of 0b10 Research branches 4514 | -9/Exiles | Met EX-DEC 4584 | -9/Exiles | Discovered new exit (range 10) 4594 | -9/Exiles | Left Exiles lab with Superbattery 4594 | -9/Exiles | Entered Mines 4603 | -8/Mines | Build established: Scavenger-Mutant 4697 | -8/Mines | Found a Scrap Suit stashed away for nefarious purposes 4717 | -8/Mines | Found Scrap Suit 4817 | -8/Mines | Core integrity fell below 20% 4855 | -8/Mines | Lost 7 parts (1p5n1w) 5034 | -8/Mines | Discovered exit to Materials (range 15) 5055 | -8/Mines | Entered Materials 5055 | -8/Materials | Evolved 2 slots: Propulsion x1, Utility x1 5416 | -8/Materials | Build established: Mutant 5613 | -8/Materials | Lost 3 parts (1p2u) 5668 | -8/Materials | Discovered new exit (range 8) 5818 | -8/Materials | Identified exit to Garrison 5818 | -8/Materials | Entered Garrison 5942 | -8/Garrison | Triggered checkpoint 6031 | -8/Garrison | Garrison Relay disabled 6085 | -8/Garrison | Build established: Gladiator 6136 | -8/Garrison | Triggered checkpoint 6224 | -8/Garrison | Lost 3 parts (2n1u) 6319 | -8/Garrison | Lost 3 parts (2n1u) 6582 | -8/Garrison | Discovered new exit (range 12) 6608 | -8/Garrison | Triggered checkpoint 6624 | -8/Garrison | Garrison Relay disabled 6663 | -8/Garrison | Lost 4 parts (1p3n) 6835 | -8/Garrison | Entered Materials 7359 | -8/Materials | Discovered new exit (range 20) 7779 | -8/Materials | Build established: Scavenger-Gladiator 8015 | -8/Materials | Entered Factory 8015 | -7/Factory | Evolved 2 slots: Utility x2 8535 | -7/Factory | Discovered new exit (range 10) 8609 | -7/Factory | Identified exit to Lower Caves 8757 | -7/Factory | Sucked down chute 8757 | -7/Factory | Entered Waste 8758 | -7/Waste | Met a frightened Derelict 8772 | -7/Waste | EMP discharged 8772 | -7/Waste | System corruption reached 10% 8772 | -7/Waste | Spotted C-40 Crusher 8774 | -7/Waste | Spotted C-40 Crusher 8792 | -7/Waste | Build established: Gladiator 8811 | -7/Waste | Spotted C-40 Crusher 8812 | -7/Waste | Spotted C-40 Crusher 8845 | -7/Waste | Spotted C-40 Crusher 8849 | -7/Waste | Spotted C-40 Crusher 8872 | -7/Waste | EMP discharged 8876 | -7/Waste | Discovered new exit (range 8) 8882 | -7/Waste | Entered Factory 8907 | -7/Factory | Discovered exit to Lower Caves (range 11) 9193 | -7/Factory | Discovered new exit (range 5) 10914 | -7/Factory | Discovered new exit (range 4) 11104 | -7/Factory | Repaired Broken Med. Armored Exoskeleton 11202 | -7/Factory | Discovered new exit (range 14) 11992 | -7/Factory | Discovered new exit (range 7) 12229 | -7/Factory | Discovered exit to Lower Caves (range 4) 12234 | -7/Factory | Entered Lower Caves 12241 | -7/Lower Caves | Met a Warlord Commander 12242 | -7/Lower Caves | Learned location of Warlord (-5) 12243 | -7/Lower Caves | Warlord Commander delivered Encrypted Comm Array 12255 | -7/Lower Caves | Found Unknown Device 12298 | -7/Lower Caves | Ambushed by wild Derelicts 12527 | -7/Lower Caves | Encountered a Warlord checkpoint 12992 | -7/Lower Caves | Discovered new exit (range 7) 12999 | -7/Lower Caves | Identified exit to Lower Caves 13001 | -7/Lower Caves | Entered another Lower Caves area 13056 | -7/Lower Caves | Discovered new exit (range 6) 13062 | -7/Lower Caves | Identified exit to Factory 13227 | -7/Lower Caves | Encountered a Warlord checkpoint 13278 | -7/Lower Caves | Spotted B-75 Beast 13521 | -7/Lower Caves | Discovered new exit (range 12) 13542 | -7/Lower Caves | Attracted the attention of an 0b10 outpost 13549 | -7/Lower Caves | Core integrity fell below 50% 13656 | -7/Lower Caves | Identified exit to Zion 13662 | -7/Lower Caves | Entered Zion 13662 | -7/Zion | Accompanied by 1 ally 13706 | -7/Zion | Discovered new exit (range 15) 13773 | -7/Zion | System corruption cleaned by Quarantine Array 13878 | -7/Zion | Build established: Mutant 14140 | -7/Zion | Received a visual enhancement algorithm 14183 | -7/Zion | Ran a visual enhancement algorithm 14276 | -7/Zion | Gained Derelict followers 14649 | -7/Zion | Learned location of Extension (-5) 14658 | -7/Zion | Learned Factory emergency access door positions 14770 | -7/Zion | Identified exit to Proximity Caves 14796 | -7/Zion | Entered Proximity Caves 14796 | -6/Proximity Caves | Accompanied by 5 allies 14896 | -6/Proximity Caves | Spotter reported a threat 14922 | -6/Proximity Caves | Found Alien Artifact 14945 | -6/Proximity Caves | Spotted B-75 Beast 14973 | -6/Proximity Caves | Allies destroyed B-75 Beast 15004 | -6/Proximity Caves | Spotter reported a threat 15120 | -6/Proximity Caves | Spotter reported a threat 15149 | -6/Proximity Caves | Learned Factory emergency access door positions 15173 | -6/Proximity Caves | Spotter reported a threat 15271 | -6/Proximity Caves | Spotter reported a threat 15322 | -6/Proximity Caves | Build established: Gladiator 15324 | -6/Proximity Caves | Spotter reported a threat 15372 | -6/Proximity Caves | Discovered exit to Factory (range 5) 15382 | -6/Proximity Caves | Entered Factory 15382 | -6/Factory | Evolved 2 slots: Weapon x2 15563 | -6/Factory | Crushed by falling debris 15699 | -6/Factory | Fabricated Med. Armored Exoskeleton (x1) 15732 | -6/Factory | Search patrols dispatched 15846 | -6/Factory | Fabricated Med. Armored Exoskeleton (x1) 16082 | -6/Factory | Search patrols dispatched 16170 | -6/Factory | Sucked down chute 16170 | -6/Factory | Entered Waste 16182 | -6/Waste | Spotted C-40 Crusher 16185 | -6/Waste | EMP discharged 16204 | -6/Waste | Spotted C-40 Crusher 16204 | -6/Waste | Spotted C-40 Crusher 16219 | -6/Waste | Spotted C-40 Crusher 16229 | -6/Waste | Spotted C-40 Crusher 16285 | -6/Waste | EMP discharged 16285 | -6/Waste | System corruption reached 10% 16318 | -6/Waste | Crushed by falling debris 16333 | -6/Waste | Spotted C-40 Crusher 16350 | -6/Waste | Discovered new exit (range 10) 16363 | -6/Waste | Entered Factory 16384 | -6/Factory | Discovered new exit (range 9) 16406 | -6/Factory | Identified exit to Lower Caves 17165 | -6/Factory | Cargo convoy interrupted 18066 | -6/Factory | Discovered new exit (range 5) 18118 | -6/Factory | Entered another Factory area 18118 | -5/Factory | Evolved 2 slots: Propulsion x1, Weapon x1 18119 | -5/Factory | Identified exit to Extension 18119 | -5/Factory | Lost 4 parts (2p1n1w) 18958 | -5/Factory | Discovered new exit (range 6) 19236 | -5/Factory | Entered Extension 19752 | -5/Extension | Rescued a captive Derelict 19754 | -5/Extension | Rescued a captive Derelict 19776 | -5/Extension | Rescued a captive Derelict 19821 | -5/Extension | Rescued a captive Derelict 19823 | -5/Extension | Rescued a captive Derelict 20055 | -5/Extension | Spotted B-75 Beast 20061 | -5/Extension | Spotted B-75 Beast 20074 | -5/Extension | Allies destroyed B-75 Beast 20085 | -5/Extension | Allies destroyed B-75 Beast 20177 | -5/Extension | Rescued a captive Derelict 20177 | -5/Extension | Rescued a captive Derelict 20300 | -5/Extension | Lost 4 allies 20385 | -5/Extension | Rescued a captive Derelict 20412 | -5/Extension | Rescued a captive Derelict 20414 | -5/Extension | Rescued a captive Derelict 20475 | -5/Extension | Rescued a captive Derelict 20698 | -5/Extension | Discovered new exit (range 10) 20699 | -5/Extension | Discovered new exit (range 6) 20777 | -5/Extension | Entered Cetus 20777 | -5/Cetus | Accompanied by 11 allies 20794 | -5/Cetus | Spotted Cetus Guard 20794 | -5/Cetus | Spotted Cetus Guard 20796 | -5/Cetus | Build established: Commander-Gladiator 20796 | -5/Cetus | Spotted Cetus Guard 20798 | -5/Cetus | Spotted Cetus Guard 20810 | -5/Cetus | Allies destroyed Cetus Guard 20814 | -5/Cetus | Allies destroyed Cetus Guard 20823 | -5/Cetus | Destroyed Cetus Guard 20832 | -5/Cetus | Allies destroyed Cetus Guard 20857 | -5/Cetus | Lost 3 allies 20930 | -5/Cetus | Discovered new exit (range 15) 20998 | -5/Cetus | Spotted Cetus Guard 20999 | -5/Cetus | Spotted Cetus Guard 21001 | -5/Cetus | Spotted Cetus Guard 21002 | -5/Cetus | Spotted Cetus Guard 21007 | -5/Cetus | Discovered new exit (range 16) 21011 | -5/Cetus | Destroyed Cetus Guard 21022 | -5/Cetus | Allies destroyed Cetus Guard 21030 | -5/Cetus | Destroyed Cetus Guard 21038 | -5/Cetus | Allies destroyed Cetus Guard 21039 | -5/Cetus | Met Revision 17 21051 | -5/Cetus | Lost 6 allies 21071 | -5/Cetus | Lost 3 parts (1n1u1w) 21304 | -5/Cetus | Entered Archives 21341 | -5/Archives | Build established: Scavenger-Gladiator 21487 | -5/Archives | Discovered new exit (range 13) 21588 | -5/Archives | Discovered new exit (range 16) 21658 | -5/Archives | Discovered new exit (range 16) 21718 | -5/Archives | Entered Hub_04(d) 21752 | -5/Hub_04(d) | Crushed by falling debris 21779 | -5/Hub_04(d) | Identified exit to Factory 21892 | -5/Hub_04(d) | Network Hub disabled 21903 | -5/Hub_04(d) | Core integrity fell below 50% 21927 | -5/Hub_04(d) | Network Hub disabled 21959 | -5/Hub_04(d) | System corruption reached 10% 21960 | -5/Hub_04(d) | Spotted Lightning 21961 | -5/Hub_04(d) | Entered Factory 21961 | -4/Factory | Evolved 2 slots: Utility x1, Weapon x1 22085 | -4/Factory | Identified exit to Garrison 22229 | -4/Factory | Fabricated Med. Armored Exoskeleton? 22758 | -4/Factory | Garrison activated, responded to threat 22918 | -4/Factory | Build established: Gladiator 22991 | -4/Factory | Fabricated Hcp. Storage Unit (x1) 23305 | -4/Factory | Repaired Imp. Actuator Array 23402 | -4/Factory | Build established: Scavenger-Gladiator 23530 | -4/Factory | Discovered new exit (range 13) 23546 | -4/Factory | Identified exit to Research 23616 | -4/Factory | Identified exit to Upper Caves 23670 | -4/Factory | Found Prototype Processor 23670 | -4/Factory | Identified Exp. Terrain Scan Processor 23813 | -4/Factory | Entered Upper Caves 23830 | -4/Upper Caves | Learned location of Quarantine (-2) 24069 | -4/Upper Caves | Build established: Gladiator 24205 | -4/Upper Caves | Learned location of Testing (-3) 24400 | -4/Upper Caves | Attracted the attention of an 0b10 checkpoint 24619 | -4/Upper Caves | A Commander dispatched an escort 24624 | -4/Upper Caves | Learned Factory security intel 24624 | -4/Upper Caves | Learned Research emergency access door positions 24624 | -4/Upper Caves | Learned Factory emergency access door positions 24738 | -4/Upper Caves | Discovered new exit (range 8) 24769 | -4/Upper Caves | Identified exit to Upper Caves 24771 | -4/Upper Caves | Entered another Upper Caves area 25036 | -4/Upper Caves | Build established: Scavenger-Gladiator 25109 | -4/Upper Caves | Discovered new exit (range 10) 25146 | -4/Upper Caves | Identified exit to Zhirov 25147 | -4/Upper Caves | Entered Zhirov 25147 | -4/Zhirov | Discovered new exit (range 3) 25169 | -4/Zhirov | Met Zhirov 25208 | -4/Zhirov | Learned location of Command (-1) 25217 | -4/Zhirov | Zhirov requested help retrieving the SGEMP Prototype 25235 | -4/Zhirov | Found Alien Artifact 25249 | -4/Zhirov | Found Alien Artifact 25249 | -4/Zhirov | Identified Integrated Dissipator 25249 | -4/Zhirov | Installed Integrated Dissipator, increased core heat dissipation (+20) 25380 | -4/Zhirov | Identified exit to Proximity Caves 25384 | -4/Zhirov | Entered Proximity Caves 25489 | -3/Proximity Caves | Lost 6 parts (1n1u4w) 25528 | -3/Proximity Caves | Build established: Gladiator 25859 | -3/Proximity Caves | Lost 4 parts (1p2n1w) 26091 | -3/Proximity Caves | Attracted the attention of an 0b10 checkpoint 26346 | -3/Proximity Caves | Discovered exit to Research (range 10) 26361 | -3/Proximity Caves | Entered Research 26361 | -3/Research | Evolved 2 slots: Power x1, Utility x1 26371 | -3/Research | Identified exit to Armory 26371 | -3/Research | Identified exit to Testing 26561 | -3/Research | Revision forces began assault on 0b10 26578 | -3/Research | Met up with Revision 17++ 26948 | -3/Research | Build established: Scavenger-Gladiator 27061 | -3/Research | Research terminal network offline 27199 | -3/Research | Found Prototype Device 27199 | -3/Research | Identified Exp. Focal Shield 27251 | -3/Research | Found Prototype Device 27251 | -3/Research | Identified Exp. Thermal Defense Suite 27298 | -3/Research | Fabricated Actuator Array (x2) 27344 | -3/Research | Build established: Gladiator 27393 | -3/Research | Entered Testing 27394 | -3/Testing | Maximum security lockdown engaged 27529 | -3/Testing | Discovered new exit (range 4) 27533 | -3/Testing | Entered Research 27533 | -2/Research | Evolved 2 slots: Propulsion x1, Utility x1 27783 | -2/Research | First assault squad dispatched 27813 | -2/Research | Build established: Hacker-Gladiator 27980 | -2/Research | Core integrity fell below 50% 28054 | -2/Research | Lost 29 parts (5p12n7u5w) 28133 | -2/Research | Identified exit to Garrison 28149 | -2/Research | Entered Garrison 28241 | -2/Garrison | Triggered checkpoint 28257 | -2/Garrison | System corruption reached 10% 28270 | -2/Garrison | Heavy support dispatched to Access 28286 | -2/Garrison | Garrison Relay disabled 28340 | -2/Garrison | Build established: Scavenger-Gladiator 28425 | -2/Garrison | Triggered checkpoint 28458 | -2/Garrison | Found Unknown Device 28458 | -2/Garrison | Identified Adv. Force Booster 28461 | -2/Garrison | Found Adv. Force Booster 28473 | -2/Garrison | Found Adv. Force Booster 28475 | -2/Garrison | Found Adv. Force Booster 28477 | -2/Garrison | Found Adv. Force Booster 28497 | -2/Garrison | Found Adv. Force Booster 29021 | -2/Garrison | Triggered checkpoint 29051 | -2/Garrison | Triggered checkpoint 29134 | -2/Garrison | Found Adv. Force Booster 29137 | -2/Garrison | Found Adv. Force Booster 29140 | -2/Garrison | Found Adv. Force Booster 29388 | -2/Garrison | Discovered new exit (range 10) 29399 | -2/Garrison | Attempted to access garrison exit controls, blocked by remote lockdown 29475 | -2/Garrison | Triggered checkpoint 29509 | -2/Garrison | Discovered new exit (range 10) 29517 | -2/Garrison | Spotted B-75 Beast 29520 | -2/Garrison | Attempted to access garrison exit controls, blocked by remote lockdown 29525 | -2/Garrison | Spotted B-86 Titan 29617 | -2/Garrison | Triggered checkpoint 29672 | -2/Garrison | Discovered new exit (range 11) 29684 | -2/Garrison | Entered Access 29684 | -1/Access | Evolved 2 slots: Propulsion x2 29934 | -1/Access | First assault squad dispatched 30096 | -1/Access | Crushed by falling debris 30096 | -1/Access | System corruption reached 10% 30127 | -1/Access | Lost 4 parts (1n3u) 30483 | -1/Access | Found Unknown Device 30483 | -1/Access | Identified Quantum Capacitor 30640 | -1/Access | Found Prototype Device 30640 | -1/Access | Identified Exp. Transmission Jammer 30643 | -1/Access | Found Exp. Transmission Jammer 30653 | -1/Access | Found Exp. Transmission Jammer 30892 | -1/Access | Identified Dimensional Node Initializer 30892 | -1/Access | Initialized slip node 32217 | -1/Access | Identified Transdimensional Reconstructor 32217 | -1/Access | Warped through subspace to slip node 32220 | -1/Access | Energy Cycler disabled 32251 | -1/Access | Lost 5 parts (1p1n2u1w) 32392 | -1/Access | System corruption reached 30% 32485 | -1/Access | Core integrity fell below 50% 32538 | -1/Access | Lost 16 parts (10n3u3w) 32598 | -1/Access | Spotted B-99 Colossus 32598 | -1/Access | Spotted B-99 Colossus 32605 | -1/Access | Core integrity fell below 20% 32608 | -1/Access | Destroyed by B-99 Colossus with Multirail Last Messages --------------- 32583_ Mic. Antimatter Reactor destroyed. 32598_ System corrupted: Matter fused (-7). 32598_ Penetrated by Slug. 32598_ Slug penetrates Wall. 32600_ Slug penetrates Reinforced Barrier. 32600_ Penetrated by Slug. 32601_ Xenon Bombardment Thruster destroyed. 32601_ Critical hit (Blast). 32601_ Penetrated by Slug. 32601_ Slug penetrates B-99 Colossus. 32602_ Acquired 5 matter. 32604_ Knocked back. 32604_ Slug penetrates Sealed Heavy Doors. 32604_ Penetrated by Slug. 32604_ Slug penetrates Sealed Heavy Doors. 32604_ Imp. Q-thruster destroyed. 32607_ B-99 Colossus activates siege mode. 32607_ Penetrated by Slug. 32608_ Knocked back. 32608_ Slug penetrates Sealed Heavy Doors. Map ----- +----------------------------------------------------+ | ?????????????????????????????????????????????????? | | ?????????????????????????????????????????????????? | | ?????????????????????????????????????????????????? | | ?????????????????????????????????????????????????? | | ?????????????????????????????????????????????????? | | ?????????????????????????????????????????????????? | | ?????????????????????????????????????????????????? | | ?????????????????????????????????????????????????? | | ?????????????????????????????????????????????????? | | ?????????????????????????????????????????????????? | | ?????????????????????????????????????????????????? | | ?????????????????????????????????????????????????? | | ?????????????????????????????????????????????????? | | ?????????????????????????????????????????????????? | | ?????????????????????????????????????????????????? | | ?????????????????????????????????????????????????? | | ????????????????#########????????????????????????? | | ????????????????# "????????????????????????? | | ????????????????# "????????????????????????? | | ?????????#+#+#### "????????????????????????? | | ???# ##### B "????????????????????????? | | ???# BB "????????????????????????? | | ??##+#??#" s "????????????????????????? | | ??? ???# ss %""???????????????????????? | | ???? ??# ### sBB ""??????????????????????? | | ????? ?# #?# BB %"@"??????????????????????? | | ?????? # #?# s% """??????????????????????? | | ??????? # #?#########????????????????????????? | | ???????? + p#??????????????????????????????????? | | ?????????# #?????????????################?????? | | ?????????# #?????????????# #?????? | | ?????????# #?????????????# #?????? | | ?????????# #???????####### ! #????? | | ?????????# ######### / #???? | | ?????????# ##### #?? [[ | | ?????????# #???# #? [[ | | ?????????# #??###########+##### [ | | ?????????# ####??# | | ?????????# ######+#?????# ######## | | ?????????# #????????????# #??????# | | ?????????# #????????????# #??????# ######+#### | | ?????????+ +????????????# #??????# #?????????? | | ?????????# ?????????????# #??????# #?????????? | | ?????????# ?????????????# #??????# #?????????? | | ?????????# ?????????????# #??????# #?????????? | | ?????????# ?????????????# #?????## #?????????? | | ?????????# ?????????????#+######## #?????????? | | ?????????# ?????????????# # #?????????? | | ?????????? ?????????????# # #?????????? | | ???????????? ??????????????# # #?????????? | +----------------------------------------------------+ Best States ------------- Heat Dissipation 72 Energy Generation 45 Energy Capacity 2050 Matter Stores 300 Matter Capacity 300 Sight Range 20 Robot Scan Range 16 Terrain Scan Range 24 Terrain Scan Density 85 Jamming Range 22 Armor Coverage 600 Resistance: KI 30 Resistance: EM 15 Core Shielding 20 Weapon Shielding 66 Melee Speed Boost 20 Phase Shifting 15 Evasion (%) 80 Melee Accuracy 22 Target Analysis 12 Core Analysis 6 Recoil Reduction 2 Force Boost 40 Offensive Hacking 24 Defensive Hacking 24 Item Schematics ----------------- Hcp. Storage Unit | -10/Materials | Hacked Med. Armored Exoskeleton | -7/Factory | Scanalyzed Imp. Medium Armor Plating | -7/Zion | Archive Imp. Heavy Armor Plating | -7/Zion | Archive Energy Filter | -7/Zion | Archive Arm. Leg | -7/Zion | Archive Imp. Deuterium Engine | -7/Zion | Archive Adv. Heat Sink | -7/Zion | Archive Launcher Guidance Computer | -7/Zion | Archive Flexi-carbon Leg | -7/Zion | Archive Shock Absorption System | -7/Zion | Archive Imp. Coolant Injector | -7/Zion | Archive Hvy. Missile Launcher | -7/Zion | Archive Drone Bay | -7/Zion | Archive Lrn. Phase Cannon | -7/Zion | Archive Great Axe | -7/Zion | Archive Hpw. Shock Rifle | -7/Zion | Archive Imp. Transmission Jammer | -7/Zion | Archive Assault Drone Bay | -4/Zhirov | Free Exp. Heat Sink | -4/Zhirov | Free Exp. Optical Array | -4/Zhirov | Free Imp. Arc Thrower | -4/Zhirov | Free Actuator Array | -3/Research | Hacked Robot Schematics ------------------ A-02 Transporter | -7/Zion | Archive C-17 Slicer | -7/Zion | Archive K-01 Serf | -7/Zion | Archive Fabricated ------------ Med. Armored Exoskeleton | x1 | -6/Factory Med. Armored Exoskeleton | x1 | -6/Factory Med. Armored Exoskeleton | x1 | -4/Factory Hcp. Storage Unit | x1 | -4/Factory Actuator Array | x2 | -3/Research Repaired ---------- Med. Armored Exoskeleton | 56% | -7/Factory | Broken Imp. Actuator Array | 18% | -4/Factory Studied --------- Aluminum Leg | -9/Materials | Hacked Alien Tech Used ----------------- Integrated Dissipator Dimensional Node Initializer Transdimensional Reconstructor Achievements -------------- Gladiator Challenges ------------ None Game ------ Seed TacticalDamperMiniperforator Manual? 0 Play Time 03:40:02 Cumulative 396.1 hours Start 2026.06.25 @ 21:22:01 End 2026.06.26 @ 02:00:58 Sessions 1 Manual Loads 0 Difficulty Rogue Special Mode None Game No. 359 Rogue 359 Adventurer 0 Explorer 0 Win Type - Total 9 Types 6/0/2/0/0/0/0/0/0/1 Lore% 60 Gallery% 67 Achievement% 63 Wizard Run 0 Options --------- Layout 1 ASCII 0 Keyboard 0 Movement Mouse Keybinds 0 Fullscreen 2 Font 24/Smallcaps Map View 50x35 Zoom Use 9% Tactical HUD 1 Map Filters NONE Filters NONE Steam 1 RUN: e1542872-26f7-4848-bdab-eeacee1c0ca1